Workbook

Sheet INGESTA MS caprino
B2: GANADO CAPRINO | D2: FEDNA 2009
A5: INGESTA MATERIA SECA (IMS)
B34: PV | C34: =IF('ENLACES DATOS'!G85="",0,'ENLACES DATOS'!G85) -> 0 | D34: Kg
B35: PL | C35: =IF('ENLACES DATOS'!G86="",0,'ENLACES DATOS'!G86) -> 0 | D35: litros
B36: GB | C36: =IF('ENLACES DATOS'!G87="",0,'ENLACES DATOS'!G87) -> 0 | D36: gr
B37: PB | C37: =IF('ENLACES DATOS'!G88="",0,'ENLACES DATOS'!G88) -> 0 | D37: gr
B38: L | C38: =IF(C35=0,0,39) -> 0 | D38: gr
B39: t | C39: =IF(C35="","",'ENLACES DATOS'!G90*4) -> 
B42: PVmetabólico | C42: =IF(C34="","",POWER(C34,0.75)) -> 0 | D42: Kg
B43: PLE(a 5.88%MG) | C43: =IF($C$35="","",((((38*$C$36)+(24.44*$C$37)+(16.45*$C$38))/1000)*$C$35)/3.59) -> 0 | D43: litros
B45: ECUACIONES IMS
B46: DIETAS SILO MAIZ | C46: =IF(C34="","",((165+(368.6*C35)+(34.8*C42)))/1000) -> 0.165 | D46: Kg MS | E46: Sauvant 8 primeras semanas
B47: DIETAS SILO MAIZ | C47: =IF(C34="","",(533+(305.2*C35)+(13.3*C34))/1000) -> 0.533 | D47: Kg MS | E47: Sauvant 8-19 semanas
B48: DIETAS SILO HIERBA | C48: =IF($C$35="","",((0.305*((((38*$C$36)+(24.44*$C$37)+(16.45*$C$38))/1000)*$C$35)/2.84))+(0.062*C42)) -> 0 | D48: Kg MS | E48: UK. 2º mes lactacion
B49: MURCIANA | C49: =IF(C42="","",((0.022*C43)+(0.107*C42))*C150) ->  | D49: Kg MS | E49: Fernandez.Ración Completa. Toda la lactacion
B50: MURCIANA | C50: =IF(C42="","",(0.111*C42)*C153) ->  | D50: Kg MS | E50: Fernandez. Ración Completa. Toda la lactacion
C149: =-0.444*(C39+7.221) -> 
C150: =1-(EXP(C149)) -> 
C152: =-0.8*C39 -> 
C153: =1-(EXP(C152)) -> 

Sheet ENERGIA caprino
B2: GANADO CAPRINO | D2: FEDNA 2009 | H2: GANADO CAPRINO | K2: FEDNA 2009
A5: ENERGIA | H5: ENERGIA
B27: PV | C27: =IF('ENLACES DATOS'!G85="",0,'ENLACES DATOS'!G85) -> 0 | D27: Kg
B28: PL | C28: =IF('ENLACES DATOS'!G86="",0,'ENLACES DATOS'!G86) -> 0 | D28: litros
B29: GB | C29: =IF('ENLACES DATOS'!G87="",0,'ENLACES DATOS'!G87) -> 0 | D29: gr
B30: PB | C30: =IF('ENLACES DATOS'!G88="",0,'ENLACES DATOS'!G88) -> 0 | D30: gr
B31: L | C31: =IF(C28=0,0,39) -> 0 | D31: gr
B32: t | C32: =IF('ENLACES DATOS'!G90="",0,'ENLACES DATOS'!G90*4) -> 0
B33: d | C33: =IF('ENLACES DATOS'!G91="",0,'ENLACES DATOS'!G91) -> 0 | D33: Km
B34: Mes Gestacion | C34: =IF('ENLACES DATOS'!G89="",0,'ENLACES DATOS'!G89) -> 0 | D34: m
C41: MJ EM | D41: Mcal ENL | E41: UFL ENL
B42: EM Mantenimiento | C42: =IF(C27="","",(0.401*J47)) -> 0 | D42: =IF(C42="","",((C42*0.67)*0.24)) -> 0 | E42: =IF(D42="","",D42/1.7) -> 0
B43: EM Mantenimiento | C43: =IF(C27="","",IF(C27>45,0,(0.421*J47))) -> 0 | D43: =IF(C43="","",((C43*0.67)*0.24)) -> 0 | E43: 0
B44: EM Mantenimiento | C44: =IF(C27="","",(0.443*J47)) -> 0 | D44: =IF(C44="","",((C44*0.67)*0.24)) -> 0 | E44: 0
B45: EM Gestacion | C45: =IF(C34=0,0,VLOOKUP(C34,B143:C146,2,FALSE)) -> 0 | D45: =IF(C45="","",((C45*0.36)*0.24)) -> 0 | E45: 0
B46: EM Lactacion | C46: =IF(C28="",0,(5.38*C28)) -> 0 | D46: =IF(C46="","",((C46*0.667)*0.24)) -> 0 | E46: 0
B47: EM reservas (mov) | C47: =IF(C32>5.9,0,(IF(C32<1,0,(((7.87-(1.02*C32)+(0.027*(C32*C32)))))*(-1)))) -> 0 | D47: =IF(C47="","",((C47*0.79)*0.24)) -> 0 | E47: 0 | I47: PVmetabólico | J47: =IF(C27="","",POWER(C27,0.75)) -> 0 | K47: Kg
B48: EM Locomoción | C48: =IF(C33="",0,((3.35*C27*C33)/1000)) -> 0 | D48: =IF(C48="","",((C48*0.67)*0.24)) -> 0 | E48: =IF(D48="","",D48/1.7) -> 0 | I48: ENL leche | J48: =IF($C$28="","",((((38*$C$29)+(24.44*$C$30)+(16.45*$C$31))/1000))) -> 0 | K48: MJ/Kg
B49: EM Termorregulacion | C49: =IF(C42="","",1.98*C42) -> 0 | D49: =IF(C49="","",((C49*0.67)*0.24)) -> 0 | E49: 0 | I49: ENL leche | J49: =IF(J48="","",J48/7.11) -> 0 | K49: UFL
I50: PLE(a 5.88%MG) | J50: =IF($C$28="","",((((38*$C$29)+(24.44*$C$30)+(16.45*$C$31))/1000)*$C$28)/3.59) -> 0 | K50: litros
B51: NECESIDADES TOTALES | C51: =IF(C42="","",C42+C45+C46+C47+C48) -> 0 | D51: =IF(C51="","",((C51*0.67)*0.24)) -> 0 | E51: =IF(D51="","",D51/1.7) -> 0 | I51: PLE(a 3.55%MG) | J51: =IF($C$28="","",((((38*$C$29)+(24.44*$C$30)+(16.45*$C$31))/1000)*$C$28)/2.84) -> 0 | K51: litros
B60: GANADO CAPRINO | D60: FEDNA 2009
A63: ENERGIA
B143: 4º Mes, 40KgPV | C143: 1.04
B144: 4º Mes, 50KgPV | C144: 1.35
B145: 5º Mes, 40KgPV | C145: 2.27
B146: 5º Mes, 50KgPV | C146: 2.59

Sheet PROTEINA caprino
B2: GANADO CAPRINO | D2: FEDNA 2009
A5: PROTEINA (PDI)
B38: PV | C38: =IF('ENLACES DATOS'!G85="",0,'ENLACES DATOS'!G85) -> 0 | D38: Kg
B39: PL | C39: =IF('ENLACES DATOS'!G86="",0,'ENLACES DATOS'!G86) -> 0 | D39: litros
B40: Mes de Gestación | C40: =IF(G40="","",VLOOKUP(G40,H40:I43,2,FALSE)) ->  | G40: =IF('ENLACES DATOS'!G89="","",'ENLACES DATOS'!G89) ->  | H40: 4º Mes, 40KgPV | I40: 4ºMES
B41: Mes de Lactacion | C41: =IF('ENLACES DATOS'!G90="",0,'ENLACES DATOS'!G90) -> 0 | D41: gr | H41: 4º Mes, 50KgPV | I41: 4ºMES
H42: 5º Mes, 40KgPV | I42: 5ºMES
H43: 5º Mes, 50KgPV | I43: 5ºMES
B45: PVmetabólico | C45: =IF(C38="","",POWER(C38,0.75)) -> 0 | D45: Kg
B49: grPDI Mantenim. | C49: =IF($C$38="","",2.99*$C$45) -> 0 | D49: grPDI
B50: grPDI Mantenim. | C50: =IF($C$38="","",2.56*$C$45) -> 0 | D50: grPDI
B51: grPDI Gestación | C51: =IF(C40="",0,((VLOOKUP(C40,B155:C156,2,FALSE))*C49)-C49) -> 0 | D51: grPDI
B52: grPDI Lactación | C52: =IF(C39="",0,(35*C39)/0.68) -> 0 | D52: grPDI
B53: grPDI Reservas | C53: =IF(C41=0,0,IF(C41<3.9,-30,4)) -> 0 | D53: grPDI
B54: grPDI TOTALES | C54: =IF(C38="","",C49+C51+C52+C53) -> 0 | D54: grPDI
B155: 4ºMES | C155: 1.6
B156: 5ºMES | C156: 2.2

Sheet INGESTA MS ovino
B2: GANADO OVINO | D2: FEDNA 2009
A5: INGESTA MATERIA SECA (IMS)
B34: PV | C34: =IF('ENLACES DATOS'!G93="",0,'ENLACES DATOS'!G93) -> 0 | D34: Kg
B35: PVc | C35: 0 | D35: gr
B36: PLS | C36: =IF('ENERGIA ovino'!C40="",0,'ENERGIA ovino'!I48) -> 0 | D36: litros
B37: K | C37: =IF(C34=0,0,1) -> 0
B38: TEMPERATURA | C38: =IF('ENLACES DATOS'!G99="","",'ENLACES DATOS'!G99) ->  | D38: ºC
B42: PVmetabólico | C42: =IF(C34="","",POWER(C34,0.75)) -> 0 | D42: Kg
B44: IMS Secas | C44: =IF(C34="","",(-0.545+(0.095*C42)+(0.005*C35))*C37) -> 0 | D44: Kg MS
B45: IMS Lactación | C45: =IF(C35="","",(-0.545+(0.095*C42)+(0.65*C36)+(0.0025*C35))*C37) -> 0 | D45: Kg MS
B46: Correccion Tª | C46: =IF(C34="","",IF(C38="",0,(IF(C38<25,0,(C38-25)*0.02)*C45))) -> 0 | D46: Kg MS
B47: IMS | C47: =IF(C45="","",C45-C46) -> 0 | D47: Kg MS

Sheet ENERGIA ovino
B2: GANADO OVINO | D2: FEDNA 2009 | H2: GANADO OVINO | J2: FEDNA 2009
A5: ENERGÍA (ENL) | G5: ENERGÍA (ENL)
E31: EB | F31: PLS
D32: MANCHEGA | E32: =IF(C41="","",(111.1*C41)+409.7) -> 409.7 | F32: =IF(C40="","",C40*((0.098*C41)+0.36)) -> 0
D33: LACAUNE/ASSAF | E33: =IF(C41="","",(99.96*C41)+450.5) -> 450.5 | F33: =IF(C40="","",C40*((0.091*C41)+0.41)) -> 0
B38: RAZA | C38: =IF('ENLACES DATOS'!G92="","",'ENLACES DATOS'!G92) -> 
B39: PV | C39: =IF('ENLACES DATOS'!G93="",0,'ENLACES DATOS'!G93) -> 0 | D39: Kg
B40: PL | C40: =IF('ENLACES DATOS'!G94="",0,'ENLACES DATOS'!G94) -> 0 | D40: litros
B41: %MG | C41: =IF('ENLACES DATOS'!G95="",0,'ENLACES DATOS'!G95/10) -> 0 | D41: %
B42: Pc | C42: =IF('ENLACES DATOS'!G97="",0,'ENLACES DATOS'!G97) -> 0 | D42: Kg
B43: t (dias gestacion) | C43: =IF('ENLACES DATOS'!G98="",0,'ENLACES DATOS'!G98) -> 0 | D43: dias
B44: CC (Estado Corporal)
B45: PERDIDA CC
B46: TIEMPO PERDIDA | D46: días
B47: KG RECUPERACION | D47: KgPV | H47: PVmetabólico | I47: =IF(C39="","",POWER(C39,0.75)) -> 0 | J47: Kg
B48: TIEMPO REC | D48: dias | H48: PLS | I48: =IF(C40=0,0,VLOOKUP($C$38,$D$31:$F$33,3,FALSE)) -> 0 | J48: litros
H49: EB (Energía Bruta de leche) | I49: =IF(C41="","",VLOOKUP($C$38,$D$31:$F$33,2,FALSE)) ->  | J49: Kcal/kg leche
E50: UFL | H50: PVV (PV vacío) | I50: =IF(C39="","",0.817*C39) -> 0 | J50: Kg
B51: ENL Mantenim | C51: =IF(I47="","",57.5*I47) -> 0 | D51: Kcal/día | E51: =IF(C51="","",C51/1700) -> 0 | H51: AG (% grasa corporal) | I51: =IF(C44="","",0.0269+(0.0869*C44)) ->  | J51: %
B52: ENL Lactacion | C52: =IF(I48="","",1132*I48) -> 0 | D52: Kcal/día | E52: =IF(C52="","",C52/1700) -> 0 | H52: AP (% proteína corporal) | I52: =IF(C44="","",(-0.0039*(C44*C44))+(0.0279*C44)+0.1449) ->  | J52: %
B53: ENL Gestación | C53: =IF(C42="","",((9248*C42*C142)*4.9)) -> 0 | D53: Kcal/día | E53: =IF(C53="","",C53/1700) -> 0 | H53: TG (total grasa corp) | I53: =IF(I51="","",I51*I50) ->  | J53: Kg
B54: ENL Pérdida Peso | C54: =IF(C45="",0,((((0.13*C45*C39)*I57)/C46)*1000)*-1) -> 0 | D54: Kcal/día | E54: =IF(C54="","",C54/1700) -> 0 | H54: TP(total proteína corp) | I54: =IF(I52="","",I52*I50) ->  | J54: Kg
B55: ENL Ganancia Peso | C55: =IF(C47="",0,((C47*I58)/C48)*1000) -> 0 | D55: Kcal/día | E55: =IF(C55="","",C55/1700) -> 0 | H55: ET (Energia Total) | I55: =IF(I53="","",(9.4*I53)+(5.7*I54)) ->  | J55: Mcal
H56: ET (Energia Total) | I56: =IF(I55="","",I55/I50) ->  | J56: Mcal
H57: ENL Pérdida Peso | I57: =IF(I56="","",I56*0.84) ->  | J57: Mcal/Kg PVV
B58: OVEJAS SECAS | C58: =IF(C51="","",C51+C54+C55) -> 0 | D58: Kcal/día | E58: =IF(C58="","",C58/1700) -> 0 | H58: ENL Ganancia Peso | I58: =IF(I56="","",1.066*I56) ->  | J58: Mcal/Kg PVV
B59: OVEJAS GESTANTES | C59: =IF(C53="","",C51+C53) -> 0 | D59: Kcal/día | E59: =IF(C59="","",C59/1700) -> 0 | H59: Kg perdidos | I59: =IF(C45="","",(0.13*C45*C39)) ->  | J59: KgPV
B60: OVEJAS ORDEÑO | C60: =IF(C51="","",C51+C52+C54+C55) -> 0 | D60: Kcal/día | E60: =IF(C60="","",C60/1700) -> 0
B62: OVEJAS TOTAL | C62: =C51+C52+C53+C54+C55 -> 0 | E62: =IF(C62="","",C62/1700) -> 0
C138: =-0.00643*C43 -> 0
C139: =EXP(C138) -> 1
C140: =-11.465*C139 -> -11.465
C141: =C140-(0.00643*C43) -> -11.465
C142: =EXP(C141) -> 1.049092458e-05

Sheet PROTEINA ovino
B2: GANADO OVINO | D2: FEDNA 2009
A5: PROTEINA (PDI)
B43: PV | C43: =IF('ENLACES DATOS'!G93="",0,'ENLACES DATOS'!G93) -> 0 | D43: Kg
B44: Pc | C44: =IF('ENLACES DATOS'!G97="",0,'ENLACES DATOS'!G97) -> 0 | D44: Kg
B45: t | C45: =IF('ENLACES DATOS'!G98="",0,'ENLACES DATOS'!G98) -> 0 | D45: dias
B46: PL | C46: =IF('ENLACES DATOS'!G94="",0,'ENLACES DATOS'!G94) -> 0 | D46: litros
B47: P | C47: =IF('ENLACES DATOS'!G96="",0,('ENLACES DATOS'!G96/10)) -> 0 | D47: %
B51: PVmetabólico | C51: =IF(C43="","",POWER(C43,0.75)) -> 0 | D51: Kg
B53: PDI Mant | C53: =IF(C51="","",2.5*C51) -> 0 | D53: gr PDI
B54: PDI Gest | C54: =IF(C44="","",((1428.06*C44*C170))/0.7) -> 0 | D54: gr PDI
B55: PDI Lact | C55: =IF(C46="","",(10*C46*C47)/0.58) -> 0 | D55: gr PDI
B57: OVEJAS SECAS | C57: =IF(C53="","",C53) -> 0 | D57: gr PDI
B58: OVEJAS GESTANTES | C58: =IF(C54="","",C53+C54) -> 0 | D58: gr PDI
B59: OVEJAS ORDEÑO | C59: =IF(C55="","",C53+C55) -> 0 | D59: gr PDI
B60: OVEJAS TOTAL | C60: =C53+C54+C55 -> 0
C166: =-0.00601*C45 -> 0
C167: =EXP(C166) -> 1
C168: =-11.22*C167 -> -11.22
C169: =C168-(0.00601*C45) -> -11.22
C170: =EXP(C169) -> 1.340342884e-05

Sheet MATERIAS PRIMAS
A1: 1 | B1: 2 | C1: 3 | D1: 4 | E1: 5 | F1: 6 | G1: 7 | H1: 8 | I1: 9 | J1: 10 | K1: 11 | L1: 12 | M1: 13 | N1: 14 | O1: 15 | P1: 16 | Q1: 17 | R1: 18 | S1: 19 | T1: 20
A2: Descripción resumida | B2: Tipo de ingrediente | C2: MS* | D2: PB* | E2: FB* | F2: GB** | G2: Cenizas* | H2: Almidón am** | I2: Azúcar | J2: FND** | K2: FAD** | L2: LAD** | M2: UFL | N2: UFC | O2: PDIE | P2: PDIN | Q2: PDIA | R2: Ca | S2: P | T2: Humedad
A3: Pasto de hierba bueno | B3: Forraje | C3: 150 | D3: 173 | E3: 200 | F3: 33 | G3: 80 | I3: 93 | J3: 507 | K3: 207 | L3: 27 | M3: 1 | N3: 0.95 | O3: 101 | P3: 113 | Q3: 41 | R3: 6 | S3: 3.2 | T3: =1000-C3 -> 850
A4: Pasto de hierba mediano | B4: Forraje | C4: 200 | D4: 140 | E4: 270 | F4: 35 | G4: 75 | H4: 0 | I4: 50 | J4: 510 | K4: 205 | L4: 20 | M4: 0.87 | N4: 0.8 | O4: 89 | P4: 91 | Q4: 35 | R4: 6.8 | S4: 2.8 | T4: =1000-C4 -> 800
A5: Hojas de remolacha forrajera | B5: Forraje | C5: 120 | D5: 141.667 | E5: 116.667 | F5: 25 | G5: 166.667 | I5: 100 | J5: 258.333 | K5: 125 | L5: 16.667 | M5: 1.008 | N5: 1.05 | O5: 116.667 | P5: 91.667 | Q5: 50 | R5: 12.167 | S5: 2.583 | T5: 880
A6: Maíz verde, lechoso | B6: Forraje | C6: 240 | D6: 83.333 | E6: 229.167 | F6: 25 | G6: 70.833 | H6: 220.833 | I6: 70.833 | J6: 487.5 | K6: 287.5 | L6: 25 | M6: 0.883 | N6: 0.783 | O6: 66.667 | P6: 54.167 | Q6: 20.833 | R6: 2.917 | S6: 3 | T6: 760
A7: Maiz verde, pastoso | B7: Forraje | C7: 280 | D7: 85.714 | E7: 235.714 | F7: 21.429 | G7: 60.714 | H7: 260.714 | I7: 39.286 | J7: 475 | K7: 278.571 | L7: 25 | M7: 0.907 | N7: 0.811 | O7: 67.857 | P7: 53.571 | Q7: 17.857 | R7: 2.5 | S7: 2.607 | T7: 720
A8: Alfalfa pre-floración | B8: Forraje | C8: 180 | D8: 216 | E8: 231 | F8: 31 | G8: 110 | H8: 0 | I8: 40 | J8: 419 | K8: 330 | L8: 51 | M8: 0.745 | N8: 0.663 | O8: 115 | P8: 143 | Q8: 61 | R8: 17.1 | S8: 4 | T8: 820
A9: Alfalfa final floración | B9: Forraje | C9: 210 | D9: 169 | E9: 331 | F9: 28 | G9: 91 | I9: 54 | J9: 530 | K9: 412 | L9: 70 | M9: 0.655 | N9: 0.561 | O9: 96 | P9: 112 | Q9: 48 | R9: 9.1 | S9: 3.1 | T9: 790
A10: Trebol joven | B10: Forraje | C10: 118 | D10: 237.288 | E10: 211.864 | F10: 25.424 | G10: 110.169 | I10: 93.22 | J10: 440.678 | K10: 220.339 | L10: 25.424 | M10: 1.042 | N10: 1.017 | O10: 127.119 | P10: 152.542 | Q10: 33.898 | R10: 16.441 | S10: 4.237 | T10: 882
A11: Trebol maduro | B11: Forraje | C11: 130 | D11: 192.308 | E11: 230.769 | F11: 30.769 | G11: 100 | I11: 69.231 | J11: 500 | K11: 238.462 | L11: 23.077 | M11: 1 | N11: 0.962 | O11: 115.385 | P11: 123.077 | Q11: 30.769 | R11: 12.385 | S11: 4 | T11: 870
A12: Avena verde, hojas | B12: Forraje | C12: 170 | D12: 170.588 | E12: 258.824 | F12: 41.176 | G12: 88.235 | I12: 152.941 | J12: 411.765 | K12: 258.824 | L12: 17.647 | M12: 0.953 | N12: 0.906 | O12: 105.882 | P12: 111.765 | Q12: 23.529 | R12: 3.588 | S12: 4 | T12: 830
A13: Avena verde en flor | B13: Forraje | C13: 240 | D13: 116.667 | E13: 308.333 | F13: 25 | G13: 87.5 | I13: 150 | J13: 475 | K13: 295.833 | L13: 20.833 | M13: 0.758 | N13: 0.683 | O13: 83.333 | P13: 75 | Q13: 16.667 | R13: 4.292 | S13: 3.583 | T13: 760
A14: Centeno verde | B14: Forraje | C14: 170 | D14: 170.588 | E14: 282.353 | F14: 35.294 | G14: 100 | I14: 117.647 | J14: 441.176 | K14: 276.471 | L14: 17.647 | M14: 0.871 | N14: 0.812 | O14: 105.882 | P14: 105.882 | Q14: 23.529 | R14: 3.412 | S14: 4.294 | T14: 830
A15: Colza | B15: Forraje | C15: 140 | D15: 207.143 | E15: 164.286 | F15: 35.714 | G15: 142.857 | I15: 78.571 | J15: 307.143 | K15: 192.857 | L15: 14.286 | M15: 1.043 | N15: 1.071 | O15: 142.857 | P15: 150 | Q15: 78.571 | R15: 19 | S15: 4.929 | T15: 860
A16: Nabo en flor | B16: Forraje | C16: 120 | D16: 191.667 | E16: 150 | F16: 33.333 | G16: 133.333 | I16: 66.667 | J16: 283.333 | K16: 183.333 | L16: 8.333 | M16: 1.067 | N16: 1.1 | O16: 133.333 | P16: 133.333 | Q16: 75 | R16: 16.833 | S16: 4.583 | T16: 880
A17: Ryegrass (pasto ballico) | B17: Forraje | C17: 140 | D17: 200 | E17: 200 | F17: 43 | G17: 93 | I17: 150 | J17: 414 | K17: 207 | L17: 21 | M17: 1 | N17: 0.96 | O17: 105 | P17: 131 | Q17: 45 | R17: 5 | S17: 5 | T17: 860
A18: Ray grass 2 corte | B18: Forraje | C18: 160 | D18: 169 | E18: 250 | F18: 38 | G18: 94 | I18: 150 | J18: 481 | K18: 262 | L18: 25 | M18: 0.9 | N18: 0.84 | O18: 97 | P18: 110 | Q18: 40 | R18: 5.813 | S18: 4 | T18: 840
A19: Alcachofa (fresco) | B19: Forraje | C19: 112 | D19: 162 | E19: 275 | F19: 15 | G19: 90 | I19: 66 | J19: 458 | K19: 376 | L19: 113 | M19: 0.798 | N19: 0.824 | O19: 75 | P19: 100 | Q19: 23 | R19: 3.35 | S19: 3.53 | T19: 888
A20: Silo de hierba 40% MS joven | B20: Forraje | C20: 400 | D20: 180 | E20: 255 | F20: 32 | G20: 93 | H20: 0 | I20: 56 | J20: 483 | K20: 283 | L20: 25 | M20: 0.94 | N20: 0.89 | O20: 91 | P20: 123 | Q20: 37 | R20: 5.6 | S20: 2.8 | T20: 600
A21: Silo de hierba 40% MS maduro | B21: Forraje | C21: 400 | D21: 115 | E21: 335 | F21: 40 | G21: 107 | I21: 24 | J21: 620 | K21: 370 | L21: 33 | M21: 0.78 | N21: 0.7 | O21: 69 | P21: 76 | Q21: 24 | R21: 8 | S21: 3.6 | T21: 600
A22: SIlo de trebol rojo | B22: Forraje | C22: 250 | D22: 164 | E22: 276 | F22: 44 | G22: 104 | I22: 120 | J22: 478 | K22: 289 | L22: 23 | M22: 0.88 | N22: 0.81 | O22: 74 | P22: 108 | Q22: 26 | R22: 13.6 | S22: 2.8 | T22: 750
A23: Silo de alfalfa | B23: Forraje | C23: 250 | D23: 172 | E23: 296 | F23: 40 | G23: 92 | H23: 0 | I23: 28 | J23: 542 | K23: 326 | L23: 127 | M23: 0.77 | N23: 0.68 | O23: 63 | P23: 108 | Q23: 21 | R23: 19 | S23: 2.4 | T23: 750
A24: Silo de hojas de remolacha forrajera | B24: Forraje | C24: 150 | D24: 156 | E24: 136 | F24: 29 | G24: 165 | I24: 20 | J24: 500 | K24: 380 | L24: 40 | M24: 1.015 | N24: 1.052 | O24: 120.5 | P24: 109.3 | Q24: 59.3 | R24: 20.8 | S24: 2.4 | T24: 850
A25: Silo de ray grass | B25: Forraje | C25: 250 | D25: 116 | E25: 288 | F25: 32 | G25: 88 | I25: 44 | J25: 505 | K25: 317 | L25: 28 | M25: 0.9 | N25: 0.84 | O25: 69 | P25: 74 | Q25: 19 | R25: 6 | S25: 2.2 | T25: 750
A26: Silo de planta entera CENTENO | B26: Forraje | C26: 350 | D26: 90 | E26: 260 | F26: 40 | G26: 75 | H26: 200 | I26: 0 | J26: 515 | K26: 340 | L26: 51 | M26: 0.79 | N26: 0.72 | O26: 69 | P26: 61 | Q26: 22 | R26: 0.52 | S26: 2.8 | T26: 650
A27: Silo de planta entera AVENA | B27: Forraje | C27: 530 | D27: 115 | E27: 270 | F27: 25 | G27: 69 | H27: 200 | I27: 20 | J27: 560 | K27: 340 | L27: 90 | M27: 0.77 | N27: 0.7 | O27: 73 | P27: 74 | Q27: 26 | R27: 0.07 | S27: 0.3 | T27: 470
A28: Slo de maíz 35% MS mucho grano | B28: Forraje | C28: 350 | D28: 76 | E28: 190 | F28: 30 | G28: 44 | H28: 385 | I28: 12 | J28: 377 | K28: 208 | L28: 15 | M28: 1.01 | N28: 0.97 | O28: 63 | P28: 49 | Q28: 17 | R28: 2.1 | S28: 2.4 | T28: 650
A29: Silo de maíz 35% MS grano normal | B29: Forraje | C29: 350 | D29: 70 | E29: 205 | F29: 30 | G29: 41 | H29: 350 | I29: 17 | J29: 395 | K29: 217 | L29: 15 | M29: 1 | N29: 0.96 | O29: 64 | P29: 45 | Q29: 16 | R29: 2.1 | S29: 2.4 | T29: 650
A30: Silo de planta entera TRITICALE GRANO MEDIO | B30: Forraje | C30: 350 | D30: 110 | E30: 238 | F30: 38 | G30: 65 | H30: 190 | I30: 30 | J30: 523 | K30: 338 | L30: 52 | M30: 0.85 | N30: 0.78 | O30: 76 | P30: 74 | Q30: 26 | R30: 2.6 | S30: 3 | T30: 650
A31: Silo de planta entera CEBADA | B31: Forraje | C31: 400 | D31: 96 | E31: 239 | F31: 23 | G31: 75 | H31: 210 | I31: 30 | J31: 480 | K31: 310 | L31: 47 | M31: 0.82 | N31: 0.75 | O31: 73 | P31: 65 | Q31: 23 | R31: 2.6 | S31: 3 | T31: 600
A32: Silo de paja de maíz 22.5% MS | B32: Forraje | C32: 225 | D32: 88 | E32: 315 | F32: 18 | G32: 52 | H32: 10 | I32: 12 | J32: 601 | K32: 366 | L32: 36 | M32: 0.742 | N32: 0.599 | O32: 69 | P32: 54 | Q32: 20 | R32: 9.8 | S32: 1.7 | T32: 775
A33: Silo de planta entera GUISANTES | B33: Forraje | C33: 300 | D33: 170 | E33: 200 | F33: 25 | G33: 70 | H33: 170 | I33: 40 | J33: 370 | K33: 268 | L33: 28 | M33: 0.898 | N33: 0.924 | O33: 95 | P33: 109 | Q33: 39 | R33: 10 | S33: 3 | T33: 700
A34: Silo de hierba 70% MS (pre-henificado) muy maduro | B34: Forraje | C34: 700 | D34: 92 | E34: 340 | F34: 22 | G34: 66 | I34: 77 | J34: 673 | K34: 385 | L34: 48 | M34: 0.62 | N34: 0.52 | O34: 68 | P34: 61 | Q34: 26 | R34: 4 | S34: 2.6 | T34: 300
A35: Silo de hierba 70% MS (pre-henificado) en flor | B35: Forraje | C35: 700 | D35: 120 | E35: 304 | F35: 28 | G35: 75 | I35: 100 | J35: 610 | K35: 340 | L35: 35 | M35: 0.81 | N35: 0.73 | O35: 86 | P35: 82 | Q35: 35 | R35: 4 | S35: 3.4 | T35: 300
A36: Silo de sorgo | B36: Forraje | C36: 360 | D36: 80 | E36: 230 | F36: 29 | G36: 85 | H36: 265 | I36: 10 | J36: 440 | K36: 275 | L36: 30 | M36: 0.83 | N36: 0.787 | O36: 69 | P36: 49 | Q36: 18 | R36: 4.5 | S36: 2 | T36: 640
A37: Silo de hierba Sudán | B37: Forraje | C37: 400 | D37: 115 | E37: 292 | F37: 37 | G37: 85 | I37: 32 | J37: 590 | K37: 340 | L37: 36 | M37: 0.623 | N37: 0.514 | O37: 61 | P37: 69 | Q37: 16 | R37: 6.4 | S37: 2.7 | T37: 600
A38: Silo de veza | B38: Forraje | C38: 450 | D38: 118 | E38: 341 | F38: 22 | G38: 94 | H38: 0 | I38: 48 | J38: 700 | K38: 425 | L38: 84 | M38: 0.63 | N38: 0.54 | O38: 69 | P38: 79 | Q38: 27 | R38: 17 | S38: 4 | T38: 550
A39: Silo de veza-avena | B39: Forraje | C39: 450 | D39: 126 | E39: 256 | F39: 24 | G39: 90 | H39: 45 | I39: 30 | J39: 510 | K39: 287 | L39: 45 | M39: 0.88 | N39: 0.82 | O39: 81 | P39: 83 | Q39: 26 | R39: 17 | S39: 4 | T39: 550
A40: Silo de alfalfa, 12.5%PB, maduro | B40: Forraje | C40: 400 | D40: 125 | E40: 300 | F40: 27 | G40: 130 | I40: 24 | J40: 450 | K40: 340 | L40: 64 | M40: 0.7 | N40: 0.62 | O40: 64 | P40: 83 | Q40: 22 | R40: 14 | S40: 3.3 | T40: 600
A41: Silo de alfalfa, PB 16.5%, maduro | B41: Forraje | C41: 400 | D41: 165 | E41: 325 | F41: 27 | G41: 115 | I41: 22 | J41: 491 | K41: 380 | L41: 78 | M41: 0.68 | N41: 0.59 | O41: 70 | P41: 114 | Q41: 29 | R41: 16 | S41: 3.3 | T41: 600
A42: Silo de alfalfa, PB 18.0%, maduro | B42: Forraje | C42: 400 | D42: 180 | E42: 297 | F42: 29 | G42: 113 | I42: 22 | J42: 456 | K42: 355 | L42: 72 | M42: 0.72 | N42: 0.63 | O42: 73 | P42: 124 | Q42: 32 | R42: 16 | S42: 3.3 | T42: 600
A43: Silo de alfalfa, PB 18.0%, medio | B43: Forraje | C43: 400 | D43: 180 | E43: 282 | F43: 28 | G43: 115 | I43: 19 | J43: 434 | K43: 330 | L43: 62 | M43: 0.76 | N43: 0.68 | O43: 76 | P43: 124 | Q43: 32 | R43: 16 | S43: 3.3 | T43: 600
A44: Heno de pasto, PB bajo, medio | B44: Forraje | C44: 860 | D44: 96 | E44: 317 | F44: 23 | G44: 105 | I44: 60 | J44: 560 | K44: 335 | L44: 33 | M44: 0.8 | N44: 0.73 | O44: 80 | P44: 62 | Q44: 30 | R44: 4.3 | S44: 2.5 | T44: 140
A45: Heno de pasto, PB bajo, maduro | B45: Forraje | C45: 860 | D45: 86 | E45: 350 | F45: 21 | G45: 100 | I45: 60 | J45: 600 | K45: 360 | L45: 35 | M45: 0.75 | N45: 0.67 | O45: 75 | P45: 55 | Q45: 27 | R45: 3.5 | S45: 2.5 | T45: 140
A46: Heno trebol rojo + hierba en flor | B46: Forraje | C46: 860 | D46: 100 | E46: 323 | F46: 28 | G46: 95 | I46: 35 | J46: 615 | K46: 370 | L46: 37 | M46: 0.723 | N46: 0.645 | O46: 70.233 | P46: 61.86 | Q46: 26.395 | R46: 10 | S46: 2.7 | T46: 140
A47: Heno de alfalfa pre-floración | B47: Forraje | C47: 860 | D47: 164 | E47: 303 | F47: 18 | G47: 106 | H47: 0 | I47: 60 | J47: 520 | K47: 418 | L47: 122 | M47: 0.72 | N47: 0.63 | O47: 87 | P47: 105 | Q47: 41 | R47: 14.1 | S47: 3.6 | T47: 140
A48: Pellets de alfalfa | B48: Forraje | C48: 900 | D48: 192 | E48: 203 | F48: 35 | G48: 112 | H48: 11 | I48: 70 | J48: 397 | K48: 257 | L48: 36 | M48: 0.757 | N48: 0.679 | O48: 108 | P48: 127 | Q48: 54 | R48: 10.8 | S48: 3.8 | T48: 100
A49: Paja de cebada | B49: Forraje | C49: 860 | D49: 38 | E49: 438 | F49: 16 | G49: 60 | H49: 0 | I49: 0 | J49: 730 | K49: 520 | L49: 120 | M49: 0.497 | N49: 0.515 | O49: 46 | P49: 23 | Q49: 11 | R49: 3.8 | S49: 0.8 | T49: 140
A50: Paja de avena | B50: Forraje | C50: 860 | D50: 38 | E50: 443 | F50: 15 | G50: 78 | H50: 0 | I50: 5 | J50: 700 | K50: 470 | L50: 140 | M50: 0.478 | N50: 0.495 | O50: 46 | P50: 23 | Q50: 11 | R50: 3.3 | S50: 1.1 | T50: 140
A51: Paja de trigo | B51: Forraje | C51: 860 | D51: 37 | E51: 427 | F51: 15 | G51: 80 | H51: 0 | I51: 0 | J51: 730 | K51: 540 | L51: 130 | M51: 0.436 | N51: 0.34 | O51: 43 | P51: 23 | Q51: 11 | R51: 2.8 | S51: 0.8 | T51: 140
A52: Paja de cebada tratada con NaOH | B52: Forraje | C52: 860 | D52: 41 | E52: 382 | F52: 14 | G52: 101 | H52: 0 | I52: 0 | J52: 673 | K52: 455 | L52: 82 | M52: 0.589 | N52: 0.516 | O52: 61.628 | P52: 25 | Q52: 11.86 | R52: 3.8 | S52: 0.8 | T52: 140
A53: Paja de maíz | B53: Forraje | C53: 913 | D53: 88 | E53: 343 | F53: 9 | G53: 34 | H53: 10 | I53: 54 | J53: 709 | K53: 429 | L53: 44 | M53: 0.54 | N53: 0.525 | O53: 91 | P53: 66 | Q53: 47 | R53: 6.1 | S53: 0.9 | T53: 87
A54: Paja de guisantes | B54: Forraje | C54: 890 | D54: 70 | E54: 420 | F54: 24 | G54: 70 | H54: 30 | I54: 20 | J54: 720 | K54: 380 | L54: 55 | M54: 0.64 | N54: 0.537 | O54: 59 | P54: 48 | Q54: 21 | R54: 3.6 | S54: 1.5 | T54: 110
A55: Heno de alfalfa deshidratada | B55: Forraje | C55: 893 | D55: 209 | E55: 275 | F55: 30 | G55: 110 | I55: 60 | J55: 473 | K55: 341 | L55: 65 | M55: 0.73 | N55: 0.667 | O55: 107 | P55: 137 | Q55: 70 | R55: 15.6 | S55: 3.1 | T55: 107
A56: Heno de alfalfa, 17% PB, medio | B56: Forraje | C56: 910 | D56: 173 | E56: 265 | F56: 30 | G56: 92 | I56: 40 | J56: 484 | K56: 345 | L56: 80 | M56: 0.73 | N56: 0.63 | O56: 87 | P56: 111 | Q56: 43 | R56: 15.6 | S56: 3.1 | T56: 90
A57: Heno de alfalfa 16% PB medio | B57: Forraje | C57: 900 | D57: 160 | E57: 260 | F57: 30 | G57: 94 | I57: 35 | J57: 419 | K57: 382 | L57: 90 | M57: 0.71 | N57: 0.62 | O57: 84 | P57: 102 | Q57: 40 | R57: 13.7 | S57: 3 | T57: 100
A58: Heno de alfalfa 14% PB medio | B58: Forraje | C58: 900 | D58: 140 | E58: 220 | F58: 30 | G58: 92 | H58: 0 | I58: 35 | J58: 462 | K58: 329 | L58: 70 | M58: 0.72 | N58: 0.62 | O58: 80 | P58: 88 | Q58: 35 | R58: 12.2 | S58: 2.8 | T58: 100
A59: Heno de avena, almidon bajo | B59: Forraje | C59: 875 | D59: 69 | E59: 286 | F59: 25 | G59: 71 | H59: 32 | I59: 5 | J59: 521 | K59: 364 | L59: 47 | M59: 0.68 | N59: 0.59 | O59: 65 | P59: 43 | Q59: 19 | R59: 3.7 | S59: 2.2 | T59: 125
A60: Heno de avena, almidon alto | B60: Forraje | C60: 900 | D60: 56 | E60: 278 | F60: 25 | G60: 61 | H60: 117 | I60: 5 | J60: 611 | K60: 333 | L60: 57 | M60: 0.74 | N60: 0.66 | O60: 65 | P60: 35 | Q60: 15 | R60: 3.7 | S60: 2.2 | T60: 100
A61: Heno de veza | B61: Forraje | C61: 913 | D61: 82 | E61: 303 | F61: 22 | G61: 79 | H61: 0 | I61: 76 | J61: 617 | K61: 352 | L61: 74 | M61: 0.72 | N61: 0.64 | O61: 76 | P61: 54 | Q61: 27 | R61: 17 | S61: 4 | T61: 87
A62: Heno de veza-avena | B62: Forraje | C62: 880 | D62: 126 | E62: 256 | F62: 24 | G62: 90 | H62: 45 | I62: 30 | J62: 510 | K62: 287 | L62: 45 | M62: 0.81 | N62: 0.74 | O62: 84 | P62: 80 | Q62: 31 | R62: 17 | S62: 4 | T62: 120
A63: Heno de veza-avena | B63: Forraje | C63: 910 | D63: 118 | E63: 341 | F63: 24 | G63: 90 | H63: 35 | I63: 30 | J63: 700 | K63: 425 | L63: 84 | M63: 0.6 | N63: 0.5 | O63: 70 | P63: 75 | Q63: 29 | R63: 17 | S63: 4 | T63: 90
A64: Agua | B64: Ingrediente (húmedo) | C64: 0 | T64: 1000
A65: Grasa de leche fresca | B65: Ingrediente (húmedo) | C65: 80 | D65: 400 | E65: 0 | F65: 50 | G65: 100 | H65: 0 | I65: 462.5 | J65: 0 | M65: 1.35 | N65: 1.396 | O65: 75 | P65: 230 | R65: 11.25 | S65: 8.75 | T65: 920
A66: Levadura de cerveza 25% MS | B66: Ingrediente (húmedo) | C66: 250 | D66: 496 | E66: 40 | F66: 22 | G66: 80 | H66: 40 | I66: 20 | J66: 35 | K66: 7 | M66: 1.168 | N66: 1.153 | O66: 146.8 | P66: 318.8 | Q66: 83.6 | R66: 3 | S66: 17.2 | T66: 750
A67: Grano fresco de cerveceria | B67: Ingrediente (húmedo) | C67: 230 | D67: 249 | E67: 185 | F67: 80 | G67: 55 | H67: 42 | I67: 8 | J67: 555 | K67: 197 | L67: 36 | M67: 0.903 | N67: 0.825 | O67: 163.043 | P67: 184.348 | Q67: 130 | R67: 3.8 | S67: 6.8 | T67: 770
A68: Silo de grano de cerveceria | B68: Ingrediente (húmedo) | C68: 260 | D68: 246 | E68: 200 | F68: 88 | G68: 62 | H68: 46 | I68: 12 | J68: 555 | K68: 197 | L68: 36 | M68: 0.907 | N68: 0.828 | O68: 160.769 | P68: 181.923 | Q68: 128.462 | R68: 3.5 | S68: 5.8 | T68: =1000-C68 -> 740
A69: Patata fresca | B69: Ingrediente (húmedo) | C69: 220 | D69: 95 | E69: 28 | F69: 7 | G69: 73 | H69: 690 | I69: 40 | J69: 85 | K69: 28 | L69: 11 | M69: 1.078 | N69: 1.128 | O69: 96.818 | P69: 63.182 | Q69: 23.636 | R69: 0.559 | S69: 2.732 | T69: 780
A70: Silo de patata | B70: Ingrediente (húmedo) | C70: 220 | D70: 100 | E70: 34 | F70: 5 | G70: 76 | H70: 690 | I70: 42 | J70: 96 | K70: 34 | L70: 13 | M70: 1.055 | N70: 1.104 | O70: 97.273 | P70: 66.818 | Q70: 25 | R70: 0.559 | S70: 2.732 | T70: 780
A71: Pulpa de patata | B71: Ingrediente (húmedo) | C71: 180 | D71: 50 | E71: 208 | F71: 6 | G71: 33 | H71: 387 | I71: 0 | J71: 349 | K71: 284 | L71: 27 | M71: 1.167 | N71: 1.178 | O71: 93.333 | P71: 33.889 | Q71: 20.556 | R71: 3.3 | S71: 2.778 | T71: 820
A72: Grano humedo de destileria | B72: Ingrediente (húmedo) | C72: 70 | D72: 284 | E72: 93 | F72: 116 | G72: 50 | H72: 81 | I72: 29 | J72: 240 | K72: 69 | L72: 12 | M72: 0.999 | N72: 0.929 | O72: 162.857 | P72: 208.571 | Q72: 124.286 | R72: 2.571 | S72: 8.571 | T72: 930
A73: Remolacha azucarera | B73: Ingrediente (húmedo) | C73: 240 | D73: 67 | E73: 54 | F73: 6 | G73: 83 | I73: 667 | J73: 129 | K73: 79 | L73: 10 | M73: 0.926 | N73: 0.905 | O73: 70 | P73: 38.75 | R73: 2.079 | S73: 1.671 | T73: 760
A74: Remolacha forrajera | B74: Ingrediente (húmedo) | C74: 176 | D74: 68.011 | E74: 63.011 | F74: 6.023 | G74: 85 | I74: 681.023 | J74: 145 | K74: 86.989 | L74: 10 | M74: 0.924 | N74: 0.903 | O74: 69.886 | P74: 39.205 | R74: 1.699 | S74: 3.409 | T74: 824
A75: Col | B75: Ingrediente (húmedo) | C75: 110 | D75: 109 | E75: 91 | F75: 9 | G75: 73 | I75: 636 | J75: 162 | K75: 96 | L75: 12 | M75: 1.165 | N75: 1.216 | O75: 120 | P75: 79.091 | Q75: 43.636 | R75: 4.555 | S75: 3.182 | T75: 890
A76: Pulpa de remolacha humeda | B76: Ingrediente (húmedo) | C76: 127 | D76: 118.031 | E76: 235.984 | F76: 24.016 | G76: 78.976 | I76: 31.969 | J76: 588.031 | K76: 288.031 | L76: 11.024 | M76: 0.994 | N76: 0.969 | O76: 108.661 | P76: 82.677 | Q76: 44.882 | R76: 10.197 | S76: 1.567 | T76: 873
A77: Pulpa de remolacha prensada | B77: Ingrediente (húmedo) | C77: 200 | D77: 115 | E77: 205 | F77: 12 | G77: 60 | I77: 17 | J77: 496 | K77: 243 | L77: 10 | M77: 1 | N77: 0.975 | O77: 110.5 | P77: 80 | Q77: 43.5 | R77: 10 | S77: 1.5 | T77: 800
A78: Pulpa de citríco fresca | B78: Ingrediente (húmedo) | C78: 220 | D78: 68 | E78: 132 | F78: 28 | G78: 64 | H78: 2 | I78: 250 | J78: 228 | K78: 217 | L78: 33 | M78: 1.159 | N78: 1.211 | O78: 96 | P78: 45 | Q78: 23 | R78: 14.6 | S78: 1.1 | T78: 780
A79: NANTADIET 50 (NG) | B79: Pienso NANTA | C79: 890.689 | D79: 355.882 | E79: 90.907 | F79: 22.455 | G79: 119.449 | H79: 77.885 | I79: 77.149 | J79: 260.662 | K79: 116.572 | L79: 22.579 | M79: 0.97 | N79: 0.932 | O79: 171.183 | P79: 247 | Q79: 119.477 | R79: 16.841 | S79: 7.859 | T79: 109.311
A80: OVILAC INTEGRAL N2500 (NG) | B80: Pienso NANTA | C80: 891.89 | D80: 205.248 | E80: 118.849 | F80: 41.485 | G80: 83.364 | H80: 189.967 | I80: 64.895 | J80: 239.321 | K80: 109.572 | L80: 12.826 | M80: 1.065 | N80: 1.037 | O80: 132.303 | P80: 142.806 | Q80: 64.537 | R80: 9.807 | S80: 5.006 | T80: 108.11
A81: AMALTEA L2500 (NG) | B81: Pienso NANTA | C81: 897.792 | D81: 183.784 | E81: 89.107 | F81: 44.554 | G81: 86.518 | H81: 278.461 | I81: 47.317 | J81: 242.331 | K81: 108.953 | L81: 19.612 | M81: 1.075 | N81: 1.056 | O81: 117.602 | P81: 126.208 | Q81: 60.339 | R81: 7.24 | S81: 5.903 | T81: 102.208
A82: CAPRI COMPLET (NV) | B82: Pienso NANTA | C82: 899.018 | D82: 189.095 | E82: 133.479 | F82: 37.391 | G82: 83.515 | H82: 211.571 | I82: 51.766 | J82: 272.932 | K82: 161.768 | L82: 35.965 | M82: 1.023 | N82: 0.993 | O82: 112.635 | P82: 126.037 | Q82: 55.616 | R82: 7.67 | S82: 5.02 | T82: 100.982
A83: INOGEST ST | B83: Pienso NANTA | C83: 893.668 | D83: 160.984 | E83: 79.457 | F83: 32.013 | G83: 75.126 | H83: 365.308 | I83: 52.58 | J83: 230.063 | K83: 98.773 | L83: 21.68 | M83: 1.024 | N83: 1.001 | O83: 109.66 | P83: 109.66 | Q83: 49.661 | R83: 13.428 | S83: 5.035 | T83: 106.332
A84: INOLAC EQ | B84: Pienso NANTA | C84: 893.304 | D84: 222.995 | E84: 87.245 | F84: 59.801 | G84: 76.692 | H84: 231.834 | I84: 67.53 | J84: 308.757 | K84: 120.029 | L84: 27.8 | M84: 1.038 | N84: 1.005 | O84: 125.377 | P84: 148.288 | Q84: 58.198 | R84: 10.075 | S84: 6.258 | T84: 106.696
A85: INOLAC | B85: Pienso NANTA | C85: 889.952 | D85: 191.022 | E85: 111.395 | F85: 36.98 | G85: 82.231 | H85: 247.204 | I85: 50.156 | J85: 341.24 | K85: 145.05 | L85: 32.513 | M85: 0.978 | N85: 0.94 | O85: 112.366 | P85: 127.308 | Q85: 53.133 | R85: 10.113 | S85: 6.853 | T85: 110.048
A86: OVINOLAC TOP | B86: Pienso NANTA | C86: 900.342 | D86: 247.441 | E86: 73.11 | F86: 38.874 | G86: 78.357 | H86: 275.457 | I86: 62.137 | J86: 218.909 | K86: 95.9 | L86: 22.638 | M86: 1.066 | N86: 1.042 | O86: 136.996 | P86: 166.666 | Q86: 71.131 | R86: 9.996 | S86: 6.404 | T86: 99.658
A87: 024B OVINANTA 90 | B87: Pienso NANTA | C87: 891.37 | D87: 190.718 | E87: 132.383 | F87: 30.044 | G87: 101.32 | H87: 188.085 | I87: 46.904 | J87: 478.836 | K87: 188.109 | L87: 46.483 | M87: 0.837 | N87: 0.78 | O87: 90.895 | P87: 123.817 | Q87: 41.093 | R87: 16.828 | S87: 7.649 | T87: 108.63
A88: OVIRECRIA | B88: Pienso NANTA | C88: 895.099 | D88: 184.337 | E88: 79.163 | F88: 31.633 | G88: 68.617 | H88: 377.987 | I88: 34.912 | J88: 189.993 | K88: 92.142 | L88: 21.336 | M88: 1.041 | N88: 1.017 | O88: 113.844 | P88: 124.142 | Q88: 51.931 | R88: 11.172 | S88: 5.448 | T88: 104.901
A89: CAPRIRECRIA | B89: Pienso NANTA | C89: 895.099 | D89: 184.337 | E89: 79.163 | F89: 31.633 | G89: 68.617 | H89: 377.987 | I89: 34.912 | J89: 189.993 | K89: 92.142 | L89: 21.336 | M89: 1.041 | N89: 1.017 | O89: 113.844 | P89: 124.142 | Q89: 51.931 | R89: 11.172 | S89: 5.448 | T89: 104.901
A90: 1596GGR.OVINANTA SUPER | B90: Pienso NANTA | C90: 893.171 | D90: 223.921 | E90: 114.965 | F90: 29.355 | G90: 92.379 | H90: 214.036 | I90: 43.967 | J90: 362.84 | K90: 153.374 | L90: 38.543 | M90: 0.909 | N90: 0.862 | O90: 111.961 | P90: 148.507 | Q90: 59.411 | R90: 13.722 | S90: 7.815 | T90: 106.829
A91: 1595GGR.OVICARN | B91: Pienso NANTA | C91: 904.143 | D91: 165.903 | E91: 158.463 | F91: 27.65 | G91: 135.908 | H91: 187.793 | I91: 36.864 | J91: 418.681 | K91: 208.417 | L91: 52.177 | M91: 0.755 | N91: 0.694 | O91: 82.951 | P91: 106.455 | Q91: 33.554 | R91: 24.332 | S91: 5.952 | T91: 95.857
A92: Jabón cálcico (Megalac) | B92: Ingrediente (seco) | C92: 970 | D92: 0 | E92: 0 | F92: 871.134 | G92: 128.866 | H92: 0 | I92: 0 | J92: 0 | M92: 3.402 | N92: 3.701 | R92: 92.784 | S92: 0 | T92: 30
A93: Propilenglycol | B93: Ingrediente (seco) | C93: 998 | F93: 331.663 | M93: 2.104 | N93: 2.435 | O93: 14.028 | T93: 2
A94: Semilla de algodón entera | B94: Ingrediente (seco) | C94: 911 | D94: 227.223 | E94: 259.056 | F94: 210.757 | G94: 43.908 | I94: 31.833 | J94: 479.693 | K94: 285.401 | L94: 130.626 | M94: 1.035 | N94: 0.934 | O94: 83.425 | P94: 140.505 | Q94: 51.592 | R94: 1.537 | S94: 7.464 | T94: 89
A95: Aceite de palm | B95: Ingrediente (seco) | C95: 995 | D95: 0 | E95: 0 | F95: 1000 | G95: 0 | H95: 0 | I95: 0 | J95: 0 | M95: 3.193 | N95: 3.366 | S95: 0 | T95: 5
A96: Aceite de soya | B96: Ingrediente (seco) | C96: 995 | D96: 0 | E96: 0 | F96: 1000 | G96: 0 | H96: 0 | I96: 0 | J96: 0 | M96: 3.196 | N96: 3.266 | S96: 0 | T96: 5
A97: Avena | B97: Ingrediente (seco) | C97: 889 | D97: 134.983 | E97: 118.11 | F97: 55.118 | G97: 29.246 | H97: 431.946 | I97: 14.623 | J97: 264.342 | K97: 133.858 | L97: 26.997 | M97: 0.928 | N97: 0.865 | O97: 92.238 | P97: 92.238 | Q97: 39.37 | R97: 1.125 | S97: 3.375 | T97: 111
A98: Cebada | B98: Ingrediente (seco) | C98: 871 | D98: 126.292 | E98: 57.405 | F98: 21.814 | G98: 26.406 | H98: 572.905 | I98: 26.406 | J98: 168.772 | K98: 63.146 | L98: 14.925 | M98: 1.071 | N98: 1.049 | O98: 102.181 | P98: 86.108 | Q98: 36.739 | R98: 0.689 | S98: 4.018 | T98: 129
A99: Cebada machacada | B99: Ingrediente (seco) | C99: 871 | D99: 118.255 | E99: 52.813 | F99: 19.518 | G99: 24.11 | H99: 568.312 | I99: 28.703 | J99: 168.772 | K99: 63.146 | L99: 14.925 | M99: 1.084 | N99: 1.065 | O99: 101.033 | P99: 80.367 | Q99: 34.443 | R99: 0.689 | S99: 4.018 | T99: 129
A100: Centeno 12% PB | B100: Ingrediente (seco) | C100: 872 | D100: 137.615 | E100: 24.083 | F100: 14.908 | G100: 18.349 | H100: 598.624 | I100: 74.541 | J100: 112.385 | K100: 32.11 | L100: 9.174 | M100: 1.171 | N100: 1.173 | O100: 103.211 | P100: 89.45 | Q100: 30.963 | R100: 0.459 | S100: 3.67 | T100: 128
A101: Maíz | B101: Ingrediente (seco) | C101: 872 | D101: 103.211 | E101: 26.376 | F101: 49.312 | G101: 14.908 | H101: 700.688 | I101: 14.908 | J101: 118.119 | K101: 30.963 | L101: 3.44 | M101: 1.219 | N101: 1.225 | O101: 100.917 | P101: 80.275 | Q101: 58.486 | R101: 0.229 | S101: 3.096 | T101: 128
A102: Pulpa de citrico | B102: Ingrediente (seco) | C102: 900 | D102: 68.889 | E102: 138.889 | F102: 27.778 | G102: 72.222 | H102: 15.556 | I102: 224.444 | J102: 215.556 | K102: 151.111 | L102: 12.222 | M102: 1.081 | N102: 1.074 | O102: 94.444 | P102: 48.889 | Q102: 24.444 | R102: 16.333 | S102: 1.111 | T102: 100
A103: Pulpa de manzana | B103: Ingrediente (seco) | C103: 880 | D103: 79.545 | E103: 295.455 | F103: 25 | G103: 45.455 | H103: 0 | I103: 187.5 | J103: 579.545 | K103: 469.318 | L103: 182.955 | M103: 0.61 | N103: 0.506 | O103: 60.227 | P103: 51.136 | Q103: 17.045 | R103: 0.682 | S103: 0.795 | T103: 120
A104: Pulpa de remolacha 12% Azucar | B104: Ingrediente (seco) | C104: 904 | D104: 98.451 | E104: 186.947 | F104: 9.956 | G104: 71.903 | H104: 5.531 | I104: 129.425 | J104: 404.867 | K104: 216.814 | L104: 12.168 | M104: 0.982 | N104: 0.96 | O104: 116.15 | P104: 79.646 | Q104: 49.779 | R104: 8.296 | S104: 0.996 | T104: 96
A105: Pulpa de remolacha 19 % Azucar | B105: Ingrediente (seco) | C105: 914 | D105: 112.691 | E105: 148.796 | F105: 7.659 | G105: 86.433 | H105: 5.47 | I105: 203.501 | J105: 322.757 | K105: 172.867 | L105: 9.847 | M105: 0.982 | N105: 0.965 | O105: 119.256 | P105: 85.339 | Q105: 53.611 | R105: 8.972 | S105: 0.656 | T105: 86
A106: Torta de soja 44% PB | B106: Ingrediente (seco) | C106: 876 | D106: 502.283 | E106: 69.635 | F106: 27.397 | G106: 73.059 | H106: 6.849 | I106: 106.164 | J106: 162.1 | K106: 101.598 | L106: 4.566 | M106: 1.203 | N106: 1.193 | O106: 254.566 | P106: 366.438 | Q106: 196.347 | R106: 2.968 | S106: 7.42 | T106: 124
A107: Trigo | B107: Ingrediente (seco) | C107: 868 | D107: 115.207 | E107: 28.802 | F107: 18.433 | G107: 17.281 | H107: 661.29 | I107: 31.106 | J107: 116.359 | K107: 34.562 | L107: 8.065 | M107: 1.158 | N107: 1.159 | O107: 100.23 | P107: 77.189 | Q107: 28.802 | R107: 0.461 | S107: 3.571 | T107: 132
A108: Triticale 11% PB | B108: Ingrediente (seco) | C108: 876 | D108: 127.854 | E108: 25.114 | F108: 17.123 | G108: 19.406 | H108: 647.26 | I108: 45.662 | J108: 111.872 | K108: 30.822 | L108: 10.274 | M108: 1.167 | N108: 1.17 | O108: 99.315 | P108: 83.333 | Q108: 26.256 | R108: 0.342 | S108: 3.767 | T108: 124
A109: Pipa de girasol (entera) | B109: Ingrediente (seco) | C109: 914 | D109: 153.173 | E109: 311.816 | F109: 318.381 | G109: 29.54 | H109: 28.446 | I109: 36.105 | J109: 458.425 | K109: 344.639 | L109: 99.562 | M109: 0.864 | N109: 0.723 | O109: 29.54 | P109: 92.998 | Q109: 15.317 | R109: 1.751 | S109: 4.705 | T109: 86
A110: Habas | B110: Ingrediente (seco) | C110: 863 | D110: 290.846 | E110: 91.541 | F110: 23.175 | G110: 39.397 | H110: 378.911 | I110: 32.445 | J110: 171.495 | K110: 115.875 | L110: 8.111 | M110: 1.191 | N110: 1.192 | O110: 111.24 | P110: 185.4 | Q110: 52.144 | R110: 1.159 | S110: 6.025 | T110: 137
A111: Carbonato cálcico 32% Ca | B111: Minero-Vitaminico | C111: 970 | G111: 979.381 | H111: 0 | I111: 0 | R111: 329.897 | T111: 30
A112: Cloruro de sodio (sal común) | B112: Minero-Vitaminico | C112: 970 | G112: 994.845 | T112: 30
A113: Leche Oveja | B113: Leche | C113: 180 | D113: 326 | E113: 0 | F113: 388 | G113: 25 | H113: 0 | I113: 233 | J113: 0 | K113: 0 | L113: 0 | M113: 1.55 | N113: 1.47 | O113: 40 | P113: 184 | Q113: 17 | R113: 11.9 | S113: 8.8 | T113: 820

Sheet FUENTE DATOS Y ECUACIONES
B7: RACIONES | D7: CAPRINO | F7: OVINO
D8: LECHE | F8: CARNE | H8: LECHE
B9: NUTRIENTE | C9: UNIDADES | D9: MEDIA | E9: DESVST | F9: MEDIA | G9: DESVST | H9: MEDIA | I9: DESVST
B10: N | C10: numero | D10: 71 | F10: 18 | H10: 91
B11: N_CHO_RD/kg MS | C11: gramos | D11: 149.5830986 | E11: 27.72379064 | F11: 118.8888889 | G11: 34.1425539 | H11: 140.3758242 | I11: 25.76204504
B12: RUMIA IDX/kg MS | C12: indice | D12: 143.5408451 | E12: 31.26103726 | F12: 184.6944444 | G12: 33.25709959 | H12: 148.7736264 | I12: 22.22109526
B13: ACID INDEX/kg MS | C13: indice | D13: 33.70704225 | E13: 4.868860939 | F13: 27.20555556 | G13: 7.749798648 | H13: 31.96813187 | I13: 5.224980151
B14: N_CET/kg MS | C14: gramos | D14: 163.8549296 | E14: 13.10049932 | F14: 146.4666667 | G14: 21.17362399 | H14: 155.2230769 | I14: 16.83873232
B15: N_GLU/kg MS | C15: gramos | D15: 140.7788732 | E15: 16.65067065 | F15: 109.5555556 | G15: 19.56074166 | H15: 134.5428571 | I15: 23.14399439
B16: N-END/Kg MS | C16: indice | D16: 844.7605634 | E16: 78.49485239 | F16: 696.7777778 | G16: 109.5619919 | H16: 796.021978 | I16: 103.5046943
B17: N-BPD/Kg MS | C17: gramos | D17: 22.98309859 | E17: 13.40421028 | F17: 22.38888889 | G17: 11.85648936 | H17: 22.45714286 | I17: 11.73463196
B23: PIENSOS | D23: CARNE | F23: LECHE
D24: CEBO | F24: ORDEÑO | H24: PREPARTO | J24: RECRIA
B25: NUTRIENTE | C25: UNIDADES | D25: MEDIA | E25: DESVST | F25: MEDIA | G25: DESVST | H25: MEDIA | I25: DESVST | J25: MEDIA | K25: DESVST
B26: N | C26: numero | D26: 19 | F26: 19
B27: N_CHO_RD | C27: gramos | D27: 236.8210526 | E27: 19.42877531 | F27: 174.3615385 | G27: 18.98251557 | H27: 201.7333333 | I27: 13.45374793 | J27: 195.3333333 | K27: 3.939966159
B28: RUMIA IDX | C28: indice | D28: 31.76842105 | E28: 4.813874927 | F28: 49.98461538 | G28: 7.630077124 | H28: 40.2 | I28: 0.4358898944 | J28: 45.1 | K28: 5.230678732
B29: ACID INDEX | C29: indice | D29: 46.40526316 | E29: 4.6651752 | F29: 35.84615385 | G29: 5.795201375 | H29: 42.23333333 | I29: 3.76342043 | J29: 41.7 | K29: 1.509966887
B30: N_CET | C30: gramos | D30: 173.6368421 | E30: 8.324275779 | F30: 171.5923077 | G30: 6.38820026 | H30: 161.3 | I30: 3.966106403 | J30: 166.8 | K30: 1.907878403
B31: N_GLU | C31: gramos | D31: 208.8105263 | E31: 7.528161553 | F31: 160.7923077 | G31: 17.91728502 | H31: 195.1666667 | I31: 13.60343094 | J31: 183.1666667 | K31: 18.26590631
B32: N-END | C32: indice | D32: 1050.631579 | E32: 46.53339366 | F32: 947.9230769 | G32: 41.4959065 | H32: 955.6666667 | I32: 26.63331247 | J32: 953.3333333 | K32: 21.59475245
B33: N-BPD | C33: gramos | D33: 10.55263158 | E33: 11.36384952 | F33: 36.5 | G33: 6.437002408 | H33: 10.7 | I33: 8.77097486 | J33: 23.46666667 | K33: 0.3055050463
B38: RACIONES | C38: CONSTANTE | D38: UF/kg MS | E38: PB/kg MS | F38: GB/kg MS | G38: FB/kg MS | H38: Alm+Su/kg MS | I38: Almidón/kg MS | J38: R
B39: N_CHO_RD/kg MS | D39: 254 | E39: -0.4191692254 | H39: 0.06476628409 | J39: 0.993
B40: RUMIA IDX/kg MS | C40: -310.1530974 | D40: 249.8572116 | G40: 1.176764681 | J40: 0.916
B41: ACID INDEX/kg MS | D41: 39 | H41: 0.02180621344 | J41: 0.994
B42: N_CET/kg MS | D42: 153.1985674 | F42: 0.7823275127 | J42: 0.996
B43: N_GLU/kg MS | D43: 116.9955135 | I43: 0.236981894 | J43: 0.993
B44: N_END | D44: 757.0402574 | F44: 3.15 | I44: 0.35 | J44: 0.999
B45: N-BPD | C45: -103.9205407 | E45: 0.604128399 | G45: 0.1640278556 | J45: 0.697
B48: PIENSOS | C48: CONSTANTE | D48: UF | E48: PB | F48: GB | G48: FB | H48: Cenizas | I48: Almidon | J48: R
B49: N_CHO_RD | C49: 86.81516093 | I49: 0.3879813731 | J49: 0.861
B50: RUMIA IDX | C50: 43.85276692 | D50: -29.27916604 | G50: 0.2927790931 | J50: 0.968
B51: ACID INDEX | C51: 19.45826128 | I51: 0.07191311432 | J51: 0.834
B52: N_CET | C52: 173.7000588 | D52: -8.754753547 | F52: 0.6861676203 | H52: -0.2970318711 | J52: 0.772
B53: N_GLU | D53: 130.7402288 | I53: 0.2263061175 | J53: 0.999
B54: N-END | C54: 118.6274767 | D54: 927.8212209 | J54: 0.894
B55: N-BPD | C55: -113.0211889 | E55: 0.7026159011 | G55: 0.2351255865 | J55: 0.864
A57: RACIONES | B57: UFL | C57: 1.393311468 | E57: -0.0004337343276 | F57: 0.001369627532 | G57: -0.002220427855 | I57: -0.0003736360998 | J57: 0.903
B58: UFC | C58: 1.463375988 | E58: -0.0006674073198 | F58: 0.001530699893 | G58: -0.002649359253 | I58: -0.0004392180564 | J58: 0.902
A60: PIENSOS | B60: UFL | C60: 1.103000965 | E60: -5.452421088e-05 | F60: 0.002337299307 | G60: -0.001654785262 | H60: -0.00160996573 | J60: 0.958
B61: UFC | C61: 1.130428951 | E61: -0.0001635834046 | F61: 0.002347859193 | G61: -0.002051509597 | H61: -0.001608695297 | J61: 0.956
B65: NECESIDADES | C65: VALOR | D65: F(x)
B66: Ca | C66: 6.5 | D66: IMS
B67: P | C67: 3.5 | D67: IMS
B68: FND | C68: 13 | D68: PV
B69: GB (Max) | C69: 70 | D69: IMS

Sheet ENLACES DATOS
J1: RANGO CONFIANZA | Q1: UTILIDAD | R1: VALOR | S1: REFERENCIA | T1: LIMITE MINIMO | U1: LIMITE MAXIMO | V1: R | W1: % VARIABILIDAD
J2: =IF(RACIONES!C12="",1,RACIONES!C12) -> 1 | M2: =IF(RACIONES!$C$10="","",RACIONES!$C$10) ->  | N2: =IF(RACIONES!$C$11="","",RACIONES!$C$11) ->  | O2: N_CHO_RD/kg MS | P2: =CONCATENATE(M2,N2,O2) -> N_CHO_RD/kg MS | Q2: =IF($F3="","",VLOOKUP($P2,$D$14:$K$34,Q$9,FALSE)) ->  | R2: =IF($F3="","",VLOOKUP($P2,$D$14:$K$34,R$9,FALSE)) -> 
C3: UF/kg MS | D3: =F3 ->  | F3: =IF(RACIONES!G7="","",RACIONES!G7) ->  | G3: =H3/$I$3 ->  | H3: =IF(RACIONES!H7="","",RACIONES!H7) ->  | I3: =IF(RACIONES!I7="","",RACIONES!I7) ->  | M3: =IF(RACIONES!$C$10="","",RACIONES!$C$10) ->  | N3: =IF(RACIONES!$C$11="","",RACIONES!$C$11) ->  | O3: RUMIA IDX/kg MS | P3: RUMIA IDX/kg MS | Q3: =IF($F4="","",VLOOKUP($P3,$D$14:$K$34,Q$9,FALSE)) ->  | R3: =IF($F4="","",VLOOKUP($P3,$D$14:$K$34,R$9,FALSE)) ->  | S3: =IF($F4="","",VLOOKUP($P3,$D$14:$K$34,S$9,FALSE)) -> 
C4: PB/kg MS | D4: =F4*1000 ->  | F4: =IF(RACIONES!G8="","",RACIONES!G8) ->  | H4: =IF(RACIONES!H8="","",RACIONES!H8) ->  | M4: =IF(RACIONES!$C$10="","",RACIONES!$C$10) ->  | N4: =IF(RACIONES!$C$11="","",RACIONES!$C$11) ->  | O4: ACID INDEX/kg MS | P4: ACID INDEX/kg MS
C5: GB/kg MS | D5: =F5*1000 ->  | F5: =IF(RACIONES!G9="","",RACIONES!G9) ->  | H5: =IF(RACIONES!H9="","",RACIONES!H9) ->  | I5: UFL | J5: =IF(F4="","",'FUENTE DATOS Y ECUACIONES'!C57+('FUENTE DATOS Y ECUACIONES'!E57*'ENLACES DATOS'!D4)+('ENLACES DATOS'!D5*'FUENTE DATOS Y ECUACIONES'!F57)+('FUENTE DATOS Y ECUACIONES'!G57*'ENLACES DATOS'!D6)+('ENLACES DATOS'!D7*'FUENTE DATOS Y ECUACIONES'!I57)) ->  | M5: =IF(RACIONES!$C$10="","",RACIONES!$C$10) ->  | N5: =IF(RACIONES!$C$11="","",RACIONES!$C$11) ->  | O5: N_CET/kg MS | P5: N_CET/kg MS
C6: FB/kg MS | D6: =F6*1000 ->  | F6: =IF(RACIONES!G10="","",RACIONES!G10) ->  | H6: =IF(RACIONES!H10="","",RACIONES!H10) ->  | I6: UFV | J6: =IF(F4="","",'FUENTE DATOS Y ECUACIONES'!C58+('FUENTE DATOS Y ECUACIONES'!E58*'ENLACES DATOS'!D4)+('ENLACES DATOS'!D5*'FUENTE DATOS Y ECUACIONES'!F58)+('FUENTE DATOS Y ECUACIONES'!G58*'ENLACES DATOS'!D6)+('ENLACES DATOS'!D7*'FUENTE DATOS Y ECUACIONES'!I58)) ->  | M6: =IF(RACIONES!$C$10="","",RACIONES!$C$10) ->  | N6: =IF(RACIONES!$C$11="","",RACIONES!$C$11) ->  | O6: N_GLU/kg MS | P6: N_GLU/kg MS
C7: Almidón/kg MS | D7: =F7*1000 ->  | F7: =IF(RACIONES!G11="","",RACIONES!G11) ->  | H7: =IF(RACIONES!H11="","",RACIONES!H11) ->  | I7: UF | J7: =IF(J5="","",(J5*0.65)+(J6*0.35)) ->  | M7: =IF(RACIONES!$C$10="","",RACIONES!$C$10) ->  | N7: =IF(RACIONES!$C$11="","",RACIONES!$C$11) ->  | O7: N-END/Kg MS | P7: N-END/Kg MS
C8: Azucar/Kg MS | D8: =F8*1000 ->  | F8: =IF(RACIONES!G12="","",RACIONES!G12) ->  | H8: =IF(RACIONES!H12="","",RACIONES!H12) ->  | M8: =IF(RACIONES!$C$10="","",RACIONES!$C$10) ->  | N8: =IF(RACIONES!$C$11="","",RACIONES!$C$11) ->  | O8: N-BPD/Kg MS | P8: N-BPD/Kg MS | Q8: =IF($F8="","",VLOOKUP($P8,$D$14:$K$34,Q$9,FALSE)) -> 
C9: Alm+Su/kg MS | D9: =D7+D8 ->  | F9: 0.10061903 | P9: 1 | Q9: 8 | R9: 2 | S9: 3 | T9: 4 | U9: 5 | V9: 6 | W9: 7
M12: =IF(RACIONES!$C$10="","",RACIONES!$C$10) ->  | N12: =IF(RACIONES!$C$11="","",RACIONES!$C$11) ->  | O12: =IF(RACIONES!I25="","",RACIONES!I25) ->  | P12: =CONCATENATE(M12,N12,O12) ->  | Q12: =IF($O12="","",VLOOKUP($P12,$D$14:$K$34,Q$9,FALSE)) ->  | R12: =IF($O12="","",VLOOKUP($P12,$D$14:$K$34,R$9,FALSE)) ->  | S12: =IF($O12="","",VLOOKUP($P12,$D$14:$K$34,S$9,FALSE)) ->  | T12: =IF($O12="","",VLOOKUP($P12,$D$14:$K$34,T$9,FALSE)) ->  | U12: =IF($O12="","",VLOOKUP($P12,$D$14:$K$34,U$9,FALSE)) -> 
A13: RACIONES | E13: VALOR | F13: REFERENCIA | G13: LIMITE MINIMO | H13: LIMITE MAXIMO | I13: R | J13: % VARIABILIDAD | K13: UTILIDAD
A14: CAPRINO | B14: LECHE | C14: N_CHO_RD/kg MS | D14: =CONCATENATE(A14,B14,C14) -> CAPRINOLECHEN_CHO_RD/kg MS | E14: =('FUENTE DATOS Y ECUACIONES'!$D$39*'ENLACES DATOS'!$D$3)+('ENLACES DATOS'!$D$4*'FUENTE DATOS Y ECUACIONES'!$E$39)+('FUENTE DATOS Y ECUACIONES'!$H$39*'ENLACES DATOS'!$D$9) ->  | F14: 149.5830986 | G14: =F14-('FUENTE DATOS Y ECUACIONES'!E11*'ENLACES DATOS'!$J$2) -> 121.859308 | H14: =F14+('FUENTE DATOS Y ECUACIONES'!E11*'ENLACES DATOS'!$J$2) -> 177.3068892 | I14: 0.993 | J14: =(E14-F14)/F14 ->  | K14: Incrementar producción
A15: CAPRINO | B15: LECHE | C15: RUMIA IDX/kg MS | D15: CAPRINOLECHERUMIA IDX/kg MS | E15: =('FUENTE DATOS Y ECUACIONES'!$C$40+('FUENTE DATOS Y ECUACIONES'!$D$40*'ENLACES DATOS'!$D$3)+('ENLACES DATOS'!$D$6*'FUENTE DATOS Y ECUACIONES'!$G$40)) ->  | F15: 143.5408451 | G15: =F15-('FUENTE DATOS Y ECUACIONES'!E12*'ENLACES DATOS'!$J$2) -> 112.2798078 | H15: =F15+('FUENTE DATOS Y ECUACIONES'!E12*'ENLACES DATOS'!$J$2) -> 174.8018823 | I15: 0.916 | J15: =(E15-F15)/F15 ->  | K15: Funcionamiento de la rumia
A16: CAPRINO | B16: LECHE | C16: ACID INDEX/kg MS | D16: CAPRINOLECHEACID INDEX/kg MS | E16: =('FUENTE DATOS Y ECUACIONES'!$D$41*'ENLACES DATOS'!$D$3)+'FUENTE DATOS Y ECUACIONES'!$H$41*'ENLACES DATOS'!$D$9 ->  | F16: 33.70704225 | G16: =F16-('FUENTE DATOS Y ECUACIONES'!E13*'ENLACES DATOS'!$J$2) -> 28.83818131 | H16: =F16+('FUENTE DATOS Y ECUACIONES'!E13*'ENLACES DATOS'!$J$2) -> 38.57590319 | I16: 0.994 | K16: Evitar acidosis
A17: CAPRINO | B17: LECHE | C17: N_CET/kg MS | D17: CAPRINOLECHEN_CET/kg MS | E17: =($D$3*'FUENTE DATOS Y ECUACIONES'!$D$42)+('FUENTE DATOS Y ECUACIONES'!$F$42*'ENLACES DATOS'!$D$5) ->  | F17: 163.8549296 | G17: =F17-('FUENTE DATOS Y ECUACIONES'!E14*'ENLACES DATOS'!$J$2) -> 150.7544303 | H17: =F17+('FUENTE DATOS Y ECUACIONES'!E14*'ENLACES DATOS'!$J$2) -> 176.9554289 | I17: 0.996 | K17: Incremento de grasa en leche
A18: CAPRINO | B18: LECHE | C18: N_GLU/kg MS | D18: CAPRINOLECHEN_GLU/kg MS | E18: =('FUENTE DATOS Y ECUACIONES'!$D$43*'ENLACES DATOS'!$D$3)+('ENLACES DATOS'!$D$7*'FUENTE DATOS Y ECUACIONES'!$I$43) ->  | F18: 140.7788732 | G18: =F18-('FUENTE DATOS Y ECUACIONES'!E15*'ENLACES DATOS'!$J$2) -> 124.1282026 | H18: =F18+('FUENTE DATOS Y ECUACIONES'!E15*'ENLACES DATOS'!$J$2) -> 157.4295439 | I18: 0.993 | K18: Evitar toxemias de gestación
A19: CAPRINO | B19: LECHE | C19: N-END/Kg MS | D19: CAPRINOLECHEN-END/Kg MS | E19: =('FUENTE DATOS Y ECUACIONES'!$D$44*'ENLACES DATOS'!$D$3)+('FUENTE DATOS Y ECUACIONES'!$I$44*'ENLACES DATOS'!$D$7)+($D$5*'FUENTE DATOS Y ECUACIONES'!$F$44) ->  | F19: 844.7605634 | G19: =F19-('FUENTE DATOS Y ECUACIONES'!E16*'ENLACES DATOS'!$J$2) -> 766.265711 | H19: =F19+('FUENTE DATOS Y ECUACIONES'!E16*'ENLACES DATOS'!$J$2) -> 923.2554158 | I19: 0.999 | K19: Energía dinámica
A20: CAPRINO | B20: LECHE | C20: N-BPD/Kg MS | D20: CAPRINOLECHEN-BPD/Kg MS | E20: =('FUENTE DATOS Y ECUACIONES'!$C$45+('FUENTE DATOS Y ECUACIONES'!$E$45*'ENLACES DATOS'!$D$4)+('FUENTE DATOS Y ECUACIONES'!$G$45*'ENLACES DATOS'!$D$6)) ->  | F20: 22.98309859 | G20: =F20-('FUENTE DATOS Y ECUACIONES'!E17*'ENLACES DATOS'!$J$2) -> 9.578888316 | H20: =F20+('FUENTE DATOS Y ECUACIONES'!E17*'ENLACES DATOS'!$J$2) -> 36.38730887 | I20: 0.697 | K20: Balance Energía-Proteína
A21: OVINO | B21: CARNE | C21: N_CHO_RD/kg MS | D21: OVINOCARNEN_CHO_RD/kg MS | E21: =('FUENTE DATOS Y ECUACIONES'!$D$39*'ENLACES DATOS'!$D$3)+('ENLACES DATOS'!$D$4*'FUENTE DATOS Y ECUACIONES'!$E$39)+('FUENTE DATOS Y ECUACIONES'!$H$39*'ENLACES DATOS'!$D$9) ->  | F21: 118.8888889 | G21: =F21-('FUENTE DATOS Y ECUACIONES'!G11*'ENLACES DATOS'!$J$2) -> 84.74633499 | H21: =F21+('FUENTE DATOS Y ECUACIONES'!G11*'ENLACES DATOS'!$J$2) -> 153.0314428 | I21: 0.993 | K21: Incrementar producción
A22: OVINO | B22: CARNE | C22: RUMIA IDX/kg MS | D22: OVINOCARNERUMIA IDX/kg MS | E22: =('FUENTE DATOS Y ECUACIONES'!$C$40+('FUENTE DATOS Y ECUACIONES'!$D$40*'ENLACES DATOS'!$D$3)+('ENLACES DATOS'!$D$6*'FUENTE DATOS Y ECUACIONES'!$G$40)) ->  | F22: 184.6944444 | G22: =F22-('FUENTE DATOS Y ECUACIONES'!G12*'ENLACES DATOS'!$J$2) -> 151.4373449 | H22: =F22+('FUENTE DATOS Y ECUACIONES'!G12*'ENLACES DATOS'!$J$2) -> 217.951544 | I22: 0.916 | K22: Funcionamiento de la rumia
A23: OVINO | B23: CARNE | C23: ACID INDEX/kg MS | D23: OVINOCARNEACID INDEX/kg MS | E23: =('FUENTE DATOS Y ECUACIONES'!$D$41*'ENLACES DATOS'!$D$3)+'FUENTE DATOS Y ECUACIONES'!$H$41*'ENLACES DATOS'!$D$9 ->  | F23: 27.20555556 | G23: =F23-('FUENTE DATOS Y ECUACIONES'!G13*'ENLACES DATOS'!$J$2) -> 19.45575691 | H23: =F23+('FUENTE DATOS Y ECUACIONES'!G13*'ENLACES DATOS'!$J$2) -> 34.9553542 | I23: 0.994 | K23: Evitar acidosis
A24: OVINO | B24: CARNE | C24: N_CET/kg MS | D24: OVINOCARNEN_CET/kg MS | E24: =($D$3*'FUENTE DATOS Y ECUACIONES'!$D$42)+('FUENTE DATOS Y ECUACIONES'!$F$42*'ENLACES DATOS'!$D$5) ->  | F24: 146.4666667 | G24: =F24-('FUENTE DATOS Y ECUACIONES'!G14*'ENLACES DATOS'!$J$2) -> 125.2930427 | H24: =F24+('FUENTE DATOS Y ECUACIONES'!G14*'ENLACES DATOS'!$J$2) -> 167.6402907 | I24: 0.996 | K24: Aumentar/Evitar engrasamiento animales
A25: OVINO | B25: CARNE | C25: N_GLU/kg MS | D25: OVINOCARNEN_GLU/kg MS | E25: =('FUENTE DATOS Y ECUACIONES'!$D$43*'ENLACES DATOS'!$D$3)+('ENLACES DATOS'!$D$7*'FUENTE DATOS Y ECUACIONES'!$I$43) ->  | F25: 109.5555556 | G25: =F25-('FUENTE DATOS Y ECUACIONES'!G15*'ENLACES DATOS'!$J$2) -> 89.99481389 | H25: =F25+('FUENTE DATOS Y ECUACIONES'!G15*'ENLACES DATOS'!$J$2) -> 129.1162972 | I25: 0.993 | K25: Aumento de eficiencia productiva
A26: OVINO | B26: CARNE | C26: N-END/Kg MS | D26: OVINOCARNEN-END/Kg MS | E26: =('FUENTE DATOS Y ECUACIONES'!$D$44*'ENLACES DATOS'!$D$3)+('FUENTE DATOS Y ECUACIONES'!$I$44*'ENLACES DATOS'!$D$7)+($D$5*'FUENTE DATOS Y ECUACIONES'!$F$44) ->  | F26: 696.7777778 | G26: =F26-('FUENTE DATOS Y ECUACIONES'!G16*'ENLACES DATOS'!$J$2) -> 587.2157859 | H26: =F26+('FUENTE DATOS Y ECUACIONES'!G16*'ENLACES DATOS'!$J$2) -> 806.3397697 | I26: 0.999 | K26: Energía dinámica
A27: OVINO | B27: CARNE | C27: N-BPD/Kg MS | D27: OVINOCARNEN-BPD/Kg MS | E27: =('FUENTE DATOS Y ECUACIONES'!$C$45+('FUENTE DATOS Y ECUACIONES'!$E$45*'ENLACES DATOS'!$D$4)+('FUENTE DATOS Y ECUACIONES'!$G$45*'ENLACES DATOS'!$D$6)) ->  | F27: 22.38888889 | G27: =F27-('FUENTE DATOS Y ECUACIONES'!G17*'ENLACES DATOS'!$J$2) -> 10.53239953 | H27: =F27+('FUENTE DATOS Y ECUACIONES'!G17*'ENLACES DATOS'!$J$2) -> 34.24537825 | I27: 0.697 | K27: Balance Energía-Proteína
A28: OVINO | B28: LECHE | C28: N_CHO_RD/kg MS | D28: OVINOLECHEN_CHO_RD/kg MS | E28: =('FUENTE DATOS Y ECUACIONES'!$D$39*'ENLACES DATOS'!$D$3)+('ENLACES DATOS'!$D$4*'FUENTE DATOS Y ECUACIONES'!$E$39)+('FUENTE DATOS Y ECUACIONES'!$H$39*'ENLACES DATOS'!$D$9) ->  | F28: 140.3758242 | G28: =F28-('FUENTE DATOS Y ECUACIONES'!I11*'ENLACES DATOS'!$J$2) -> 114.6137791 | H28: =F28+('FUENTE DATOS Y ECUACIONES'!I11*'ENLACES DATOS'!$J$2) -> 166.1378692 | I28: 0.993 | K28: Incrementar producción
A29: OVINO | B29: LECHE | C29: RUMIA IDX/kg MS | D29: OVINOLECHERUMIA IDX/kg MS | E29: =('FUENTE DATOS Y ECUACIONES'!$C$40+('FUENTE DATOS Y ECUACIONES'!$D$40*'ENLACES DATOS'!$D$3)+('ENLACES DATOS'!$D$6*'FUENTE DATOS Y ECUACIONES'!$G$40)) ->  | F29: 148.7736264 | G29: =F29-('FUENTE DATOS Y ECUACIONES'!I12*'ENLACES DATOS'!$J$2) -> 126.5525311 | H29: =F29+('FUENTE DATOS Y ECUACIONES'!I12*'ENLACES DATOS'!$J$2) -> 170.9947216 | I29: 0.916 | K29: Funcionamiento de la rumia
A30: OVINO | B30: LECHE | C30: ACID INDEX/kg MS | D30: OVINOLECHEACID INDEX/kg MS | E30: =('FUENTE DATOS Y ECUACIONES'!$D$41*'ENLACES DATOS'!$D$3)+'FUENTE DATOS Y ECUACIONES'!$H$41*'ENLACES DATOS'!$D$9 ->  | F30: 31.96813187 | G30: =F30-('FUENTE DATOS Y ECUACIONES'!I13*'ENLACES DATOS'!$J$2) -> 26.74315172 | H30: =F30+('FUENTE DATOS Y ECUACIONES'!I13*'ENLACES DATOS'!$J$2) -> 37.19311202 | I30: 0.994 | K30: Evitar acidosis
A31: OVINO | B31: LECHE | C31: N_CET/kg MS | D31: OVINOLECHEN_CET/kg MS | E31: =($D$3*'FUENTE DATOS Y ECUACIONES'!$D$42)+('FUENTE DATOS Y ECUACIONES'!$F$42*'ENLACES DATOS'!$D$5) ->  | F31: 155.2230769 | G31: =F31-('FUENTE DATOS Y ECUACIONES'!I14*'ENLACES DATOS'!$J$2) -> 138.3843446 | H31: =F31+('FUENTE DATOS Y ECUACIONES'!I14*'ENLACES DATOS'!$J$2) -> 172.0618092 | I31: 0.996 | K31: Incremento de grasa en leche
A32: OVINO | B32: LECHE | C32: N_GLU/kg MS | D32: OVINOLECHEN_GLU/kg MS | E32: =('FUENTE DATOS Y ECUACIONES'!$D$43*'ENLACES DATOS'!$D$3)+('ENLACES DATOS'!$D$7*'FUENTE DATOS Y ECUACIONES'!$I$43) ->  | F32: 134.5428571 | G32: =F32-('FUENTE DATOS Y ECUACIONES'!I15*'ENLACES DATOS'!$J$2) -> 111.3988628 | H32: =F32+('FUENTE DATOS Y ECUACIONES'!I15*'ENLACES DATOS'!$J$2) -> 157.6868515 | I32: 0.993 | K32: Evitar toxemias de gestación
A33: OVINO | B33: LECHE | C33: N-END/Kg MS | D33: OVINOLECHEN-END/Kg MS | E33: =('FUENTE DATOS Y ECUACIONES'!$D$44*'ENLACES DATOS'!$D$3)+('FUENTE DATOS Y ECUACIONES'!$I$44*'ENLACES DATOS'!$D$7)+($D$5*'FUENTE DATOS Y ECUACIONES'!$F$44) ->  | F33: 796.021978 | G33: =F33-('FUENTE DATOS Y ECUACIONES'!I16*'ENLACES DATOS'!$J$2) -> 692.5172838 | H33: =F33+('FUENTE DATOS Y ECUACIONES'!I16*'ENLACES DATOS'!$J$2) -> 899.5266723 | I33: 0.999 | K33: Energía dinámica
A34: OVINO | B34: LECHE | C34: N-BPD/Kg MS | D34: OVINOLECHEN-BPD/Kg MS | E34: =('FUENTE DATOS Y ECUACIONES'!$C$45+('FUENTE DATOS Y ECUACIONES'!$E$45*'ENLACES DATOS'!$D$4)+('FUENTE DATOS Y ECUACIONES'!$G$45*'ENLACES DATOS'!$D$6)) ->  | F34: 22.45714286 | G34: =F34-('FUENTE DATOS Y ECUACIONES'!I17*'ENLACES DATOS'!$J$2) -> 10.72251089 | H34: =F34+('FUENTE DATOS Y ECUACIONES'!I17*'ENLACES DATOS'!$J$2) -> 34.19177482 | I34: 0.697 | K34: Balance Energía-Proteína
C39: UF | D39: =IF(F39="","",F39) ->  | F39: =IF(PIENSOS!G7="","",PIENSOS!G7) ->  | G39: UFL | H39: =IF(F40="","",'FUENTE DATOS Y ECUACIONES'!C60+('FUENTE DATOS Y ECUACIONES'!E60*'ENLACES DATOS'!D40)+('ENLACES DATOS'!D41*'FUENTE DATOS Y ECUACIONES'!F60)+('FUENTE DATOS Y ECUACIONES'!G60*'ENLACES DATOS'!D42)+('FUENTE DATOS Y ECUACIONES'!H60*'ENLACES DATOS'!D43)) -> 
C40: PB | D40: =IF(F40="","",F40*1000) ->  | F40: =IF(PIENSOS!G8="","",PIENSOS!G8) ->  | G40: UFV | H40: =IF(F40="","",'FUENTE DATOS Y ECUACIONES'!C61+('FUENTE DATOS Y ECUACIONES'!E61*'ENLACES DATOS'!D40)+('ENLACES DATOS'!D41*'FUENTE DATOS Y ECUACIONES'!F61)+('FUENTE DATOS Y ECUACIONES'!G61*'ENLACES DATOS'!D42)+('ENLACES DATOS'!D43*'FUENTE DATOS Y ECUACIONES'!H61)) ->  | J40: RANGO CONFIANZA
C41: GB | D41: =IF(F41="","",F41*1000) ->  | F41: =IF(PIENSOS!G9="","",PIENSOS!G9) ->  | G41: UF | H41: =IF(H39="","",(H39*0.65)+(H40*0.35)) ->  | J41: =IF(PIENSOS!C11="",1,PIENSOS!C11) -> 1
C42: FB | F42: =IF(PIENSOS!G10="","",PIENSOS!G10) -> 
C43: Cenizas | F43: =IF(PIENSOS!G11="","",PIENSOS!G11) -> 
C44: Almidon | F44: =IF(PIENSOS!G12="","",PIENSOS!G12) -> 
Q48: UTILIDAD | R48: VALOR | S48: REFERENCIA | T48: LIMITE MINIMO | U48: LIMITE MAXIMO | V48: R | W48: % VARIABILIDAD
A49: PIENSOS | E49: VALOR | F49: REFERENCIA | G49: LIMITE MINIMO | H49: LIMITE MAXIMO | I49: R | J49: % VARIABILIDAD | K49: UTILIDAD | N49: =IF(PIENSOS!$C$10="","",PIENSOS!$C$10) ->  | O49: N_CHO_RD | P49: =CONCATENATE(M49,N49,O49) -> N_CHO_RD | Q49: =IF($F39="","",VLOOKUP($P49,$D$50:$K$77,Q$56,FALSE)) ->  | R49: =IF($F39="","",VLOOKUP($P49,$D$50:$K$77,R$56,FALSE)) ->  | T49: =IF($F39="","",VLOOKUP($P49,$D$50:$K$77,T$56,FALSE)) -> 
B50: CEBO | C50: N_CHO_RD | D50: =CONCATENATE(A50,B50,C50) -> CEBON_CHO_RD | E50: ='FUENTE DATOS Y ECUACIONES'!$C$49+('FUENTE DATOS Y ECUACIONES'!$I$49*'ENLACES DATOS'!$D$44) ->  | F50: 236.8210526 | G50: =F50-($J$41*'FUENTE DATOS Y ECUACIONES'!E27) -> 217.3922773 | H50: =F50+($J$41*'FUENTE DATOS Y ECUACIONES'!E27) -> 256.2498279 | I50: 0.861 | J50: =(E50-F50)/F50 ->  | K50: Incrementar crecimiento | N50: =IF(PIENSOS!$C$10="","",PIENSOS!$C$10) ->  | O50: RUMIA IDX | P50: RUMIA IDX | Q50: =IF($F40="","",VLOOKUP($P50,$D$50:$K$77,Q$56,FALSE)) ->  | T50: =IF($F40="","",VLOOKUP($P50,$D$50:$K$77,T$56,FALSE)) -> 
B51: CEBO | C51: RUMIA IDX | D51: CEBORUMIA IDX | E51: ='FUENTE DATOS Y ECUACIONES'!$C$50+('FUENTE DATOS Y ECUACIONES'!$D$50*'ENLACES DATOS'!$D$39)+('ENLACES DATOS'!$D$42*'FUENTE DATOS Y ECUACIONES'!$G$50) ->  | F51: 31.76842105 | G51: =F51-($J$41*'FUENTE DATOS Y ECUACIONES'!E28) -> 26.95454613 | H51: =F51+($J$41*'FUENTE DATOS Y ECUACIONES'!E28) -> 36.58229598 | I51: 0.968 | J51: =(E51-F51)/F51 ->  | K51: Funcionamiento de la rumia | N51: =IF(PIENSOS!$C$10="","",PIENSOS!$C$10) ->  | O51: ACID INDEX | P51: ACID INDEX | Q51: =IF($F41="","",VLOOKUP($P51,$D$50:$K$77,Q$56,FALSE)) ->  | T51: =IF($F41="","",VLOOKUP($P51,$D$50:$K$77,T$56,FALSE)) -> 
B52: CEBO | C52: ACID INDEX | D52: CEBOACID INDEX | E52: ='FUENTE DATOS Y ECUACIONES'!$C$51+('FUENTE DATOS Y ECUACIONES'!$I$51*'ENLACES DATOS'!$D$44) ->  | F52: 46.40526316 | G52: =F52-($J$41*'FUENTE DATOS Y ECUACIONES'!E29) -> 41.74008796 | H52: =F52+($J$41*'FUENTE DATOS Y ECUACIONES'!E29) -> 51.07043836 | I52: 0.834 | K52: Evitar acidosis | N52: =IF(PIENSOS!$C$10="","",PIENSOS!$C$10) ->  | O52: N_CET | P52: N_CET | Q52: =IF($F42="","",VLOOKUP($P52,$D$50:$K$77,Q$56,FALSE)) ->  | T52: =IF($F42="","",VLOOKUP($P52,$D$50:$K$77,T$56,FALSE)) -> 
B53: CEBO | C53: N_CET | D53: CEBON_CET | E53: ='FUENTE DATOS Y ECUACIONES'!$C$52+('FUENTE DATOS Y ECUACIONES'!$D$52*'ENLACES DATOS'!$D$39)+('ENLACES DATOS'!$D$41*'FUENTE DATOS Y ECUACIONES'!$F$52)+('FUENTE DATOS Y ECUACIONES'!$H$52*'ENLACES DATOS'!$D$43) ->  | F53: 173.6368421 | G53: =F53-($J$41*'FUENTE DATOS Y ECUACIONES'!E30) -> 165.3125663 | H53: =F53+($J$41*'FUENTE DATOS Y ECUACIONES'!E30) -> 181.9611179 | I53: 0.772 | K53: Aumentar/Evitar engrasamiento animales | N53: =IF(PIENSOS!$C$10="","",PIENSOS!$C$10) ->  | O53: N_GLU | P53: N_GLU | Q53: =IF($F43="","",VLOOKUP($P53,$D$50:$K$77,Q$56,FALSE)) ->  | T53: =IF($F43="","",VLOOKUP($P53,$D$50:$K$77,T$56,FALSE)) -> 
B54: CEBO | C54: N_GLU | D54: CEBON_GLU | E54: =($D$39*'FUENTE DATOS Y ECUACIONES'!$D$53)+('FUENTE DATOS Y ECUACIONES'!$I$53*'ENLACES DATOS'!$D$44) ->  | F54: 208.8105263 | G54: =F54-($J$41*'FUENTE DATOS Y ECUACIONES'!E31) -> 201.2823648 | H54: =F54+($J$41*'FUENTE DATOS Y ECUACIONES'!E31) -> 216.3386879 | I54: 0.999 | K54: Aumento de eficiencia productiva | N54: =IF(PIENSOS!$C$10="","",PIENSOS!$C$10) ->  | O54: N-END | P54: N-END | Q54: =IF($F44="","",VLOOKUP($P54,$D$50:$K$77,Q$56,FALSE)) ->  | T54: =IF($F44="","",VLOOKUP($P54,$D$50:$K$77,T$56,FALSE)) -> 
B55: CEBO | C55: N-END | D55: CEBON-END | E55: =($D$39*'FUENTE DATOS Y ECUACIONES'!$D$54)+'FUENTE DATOS Y ECUACIONES'!$C$54 ->  | F55: 1050.631579 | G55: =F55-($J$41*'FUENTE DATOS Y ECUACIONES'!E32) -> 1004.098185 | H55: =F55+($J$41*'FUENTE DATOS Y ECUACIONES'!E32) -> 1097.164973 | I55: 0.894 | K55: Energía dinámica | N55: =IF(PIENSOS!$C$10="","",PIENSOS!$C$10) ->  | O55: N-BPD | P55: N-BPD | Q55: =IF($F44="","",VLOOKUP($P55,$D$50:$K$77,Q$56,FALSE)) ->  | R55: =IF($F44="","",VLOOKUP($P55,$D$50:$K$77,R$56,FALSE)) ->  | T55: =IF($F44="","",VLOOKUP($P55,$D$50:$K$77,T$56,FALSE)) -> 
B56: CEBO | C56: N-BPD | D56: CEBON-BPD | E56: =($D$42*'FUENTE DATOS Y ECUACIONES'!$G$55)+('FUENTE DATOS Y ECUACIONES'!$E$55*'ENLACES DATOS'!$D$40)+'FUENTE DATOS Y ECUACIONES'!$C$55 ->  | F56: 10.55263158 | G56: =F56-($J$41*'FUENTE DATOS Y ECUACIONES'!E33) -> -0.8112179459 | H56: =F56+($J$41*'FUENTE DATOS Y ECUACIONES'!E33) -> 21.9164811 | I56: 0.864 | K56: Balance Energía-Proteína | P56: 1 | Q56: 8 | R56: 2 | S56: 3 | T56: 4 | U56: 5 | V56: 6 | W56: 7
B57: ORDEÑO | C57: N_CHO_RD | D57: ORDEÑON_CHO_RD | E57: ='FUENTE DATOS Y ECUACIONES'!$C$49+('FUENTE DATOS Y ECUACIONES'!$I$49*'ENLACES DATOS'!$D$44) ->  | F57: 174.3615385 | G57: =F57-($J$41*'FUENTE DATOS Y ECUACIONES'!G27) -> 155.3790229 | H57: =F57+($J$41*'FUENTE DATOS Y ECUACIONES'!G27) -> 193.344054 | I57: 0.861 | K57: Incrementar producción
B58: ORDEÑO | C58: RUMIA IDX | D58: ORDEÑORUMIA IDX | E58: ='FUENTE DATOS Y ECUACIONES'!$C$50+('FUENTE DATOS Y ECUACIONES'!$D$50*'ENLACES DATOS'!$D$39)+('ENLACES DATOS'!$D$42*'FUENTE DATOS Y ECUACIONES'!$G$50) ->  | F58: 49.98461538 | G58: =F58-($J$41*'FUENTE DATOS Y ECUACIONES'!G28) -> 42.35453826 | H58: =F58+($J$41*'FUENTE DATOS Y ECUACIONES'!G28) -> 57.61469251 | I58: 0.968 | K58: Funcionamiento de la rumia
B59: ORDEÑO | C59: ACID INDEX | D59: ORDEÑOACID INDEX | E59: ='FUENTE DATOS Y ECUACIONES'!$C$51+('FUENTE DATOS Y ECUACIONES'!$I$51*'ENLACES DATOS'!$D$44) ->  | F59: 35.84615385 | G59: =F59-($J$41*'FUENTE DATOS Y ECUACIONES'!G29) -> 30.05095247 | H59: =F59+($J$41*'FUENTE DATOS Y ECUACIONES'!G29) -> 41.64135522 | I59: 0.834 | K59: Evitar acidosis | N59: =IF(PIENSOS!$C$10="","",PIENSOS!$C$10) ->  | O59: =IF(PIENSOS!I25="","",PIENSOS!I25) ->  | P59: =CONCATENATE(M59,N59,O59) ->  | Q59: =IF($O59="","",VLOOKUP($P59,$D$50:$K$77,Q$56,FALSE)) ->  | R59: =IF($O59="","",VLOOKUP($P59,$D$50:$K$77,R$56,FALSE)) ->  | S59: =IF($O59="","",VLOOKUP($P59,$D$50:$K$77,S$56,FALSE)) -> 
B60: ORDEÑO | C60: N_CET | D60: ORDEÑON_CET | E60: ='FUENTE DATOS Y ECUACIONES'!$C$52+('FUENTE DATOS Y ECUACIONES'!$D$52*'ENLACES DATOS'!$D$39)+('ENLACES DATOS'!$D$41*'FUENTE DATOS Y ECUACIONES'!$F$52)+('FUENTE DATOS Y ECUACIONES'!$H$52*'ENLACES DATOS'!$D$43) ->  | F60: 171.5923077 | G60: =F60-($J$41*'FUENTE DATOS Y ECUACIONES'!G30) -> 165.2041074 | H60: =F60+($J$41*'FUENTE DATOS Y ECUACIONES'!G30) -> 177.980508 | I60: 0.772 | K60: Incremento de grasa en leche
B61: ORDEÑO | C61: N_GLU | D61: ORDEÑON_GLU | E61: =($D$39*'FUENTE DATOS Y ECUACIONES'!$D$53)+('FUENTE DATOS Y ECUACIONES'!$I$53*'ENLACES DATOS'!$D$44) ->  | F61: 160.7923077 | G61: =F61-($J$41*'FUENTE DATOS Y ECUACIONES'!G31) -> 142.8750227 | H61: =F61+($J$41*'FUENTE DATOS Y ECUACIONES'!G31) -> 178.7095927 | I61: 0.999 | K61: Evitar toxemias de gestación
B62: ORDEÑO | C62: N-END | D62: ORDEÑON-END | E62: =($D$39*'FUENTE DATOS Y ECUACIONES'!$D$54)+'FUENTE DATOS Y ECUACIONES'!$C$54 ->  | F62: 947.9230769 | G62: =F62-($J$41*'FUENTE DATOS Y ECUACIONES'!G32) -> 906.4271704 | H62: =F62+($J$41*'FUENTE DATOS Y ECUACIONES'!G32) -> 989.4189834 | I62: 0.894 | K62: Energía dinámica
B63: ORDEÑO | C63: N-BPD | D63: ORDEÑON-BPD | E63: =($D$42*'FUENTE DATOS Y ECUACIONES'!$G$55)+('FUENTE DATOS Y ECUACIONES'!$E$55*'ENLACES DATOS'!$D$40)+'FUENTE DATOS Y ECUACIONES'!$C$55 ->  | F63: 36.5 | G63: =F63-($J$41*'FUENTE DATOS Y ECUACIONES'!G33) -> 30.06299759 | H63: =F63+($J$41*'FUENTE DATOS Y ECUACIONES'!G33) -> 42.93700241 | I63: 0.864 | K63: Balance Energía-Proteína
B64: PREPARTO | C64: N_CHO_RD | D64: PREPARTON_CHO_RD | E64: ='FUENTE DATOS Y ECUACIONES'!$C$49+('FUENTE DATOS Y ECUACIONES'!$I$49*'ENLACES DATOS'!$D$44) ->  | F64: 201.7333333 | G64: =F64-($J$41*'FUENTE DATOS Y ECUACIONES'!I27) -> 188.2795854 | H64: =F64+($J$41*'FUENTE DATOS Y ECUACIONES'!I27) -> 215.1870813 | I64: 0.861 | K64: Incrementar producción
B65: PREPARTO | C65: RUMIA IDX | D65: PREPARTORUMIA IDX | E65: ='FUENTE DATOS Y ECUACIONES'!$C$50+('FUENTE DATOS Y ECUACIONES'!$D$50*'ENLACES DATOS'!$D$39)+('ENLACES DATOS'!$D$42*'FUENTE DATOS Y ECUACIONES'!$G$50) ->  | F65: 40.2 | G65: =F65-($J$41*'FUENTE DATOS Y ECUACIONES'!I28) -> 39.76411011 | H65: =F65+($J$41*'FUENTE DATOS Y ECUACIONES'!I28) -> 40.63588989 | I65: 0.968 | K65: Funcionamiento de la rumia
B66: PREPARTO | C66: ACID INDEX | D66: PREPARTOACID INDEX | E66: ='FUENTE DATOS Y ECUACIONES'!$C$51+('FUENTE DATOS Y ECUACIONES'!$I$51*'ENLACES DATOS'!$D$44) ->  | F66: 42.23333333 | G66: =F66-($J$41*'FUENTE DATOS Y ECUACIONES'!I29) -> 38.4699129 | H66: =F66+($J$41*'FUENTE DATOS Y ECUACIONES'!I29) -> 45.99675376 | I66: 0.834 | K66: Evitar acidosis
B67: PREPARTO | C67: N_CET | D67: PREPARTON_CET | E67: ='FUENTE DATOS Y ECUACIONES'!$C$52+('FUENTE DATOS Y ECUACIONES'!$D$52*'ENLACES DATOS'!$D$39)+('ENLACES DATOS'!$D$41*'FUENTE DATOS Y ECUACIONES'!$F$52)+('FUENTE DATOS Y ECUACIONES'!$H$52*'ENLACES DATOS'!$D$43) ->  | F67: 161.3 | G67: =F67-($J$41*'FUENTE DATOS Y ECUACIONES'!I30) -> 157.3338936 | H67: =F67+($J$41*'FUENTE DATOS Y ECUACIONES'!I30) -> 165.2661064 | I67: 0.772 | K67: Evitar engrasamiento de animales
B68: PREPARTO | C68: N_GLU | D68: PREPARTON_GLU | E68: =($D$39*'FUENTE DATOS Y ECUACIONES'!$D$53)+('FUENTE DATOS Y ECUACIONES'!$I$53*'ENLACES DATOS'!$D$44) ->  | F68: 195.1666667 | G68: =F68-($J$41*'FUENTE DATOS Y ECUACIONES'!I31) -> 181.5632357 | H68: =F68+($J$41*'FUENTE DATOS Y ECUACIONES'!I31) -> 208.7700976 | I68: 0.999 | K68: Evitar toxemias de gestación
B69: PREPARTO | C69: N-END | D69: PREPARTON-END | E69: =($D$39*'FUENTE DATOS Y ECUACIONES'!$D$54)+'FUENTE DATOS Y ECUACIONES'!$C$54 ->  | F69: 955.6666667 | G69: =F69-($J$41*'FUENTE DATOS Y ECUACIONES'!I32) -> 929.0333542 | H69: =F69+($J$41*'FUENTE DATOS Y ECUACIONES'!I32) -> 982.2999791 | I69: 0.894 | K69: Energía dinámica
B70: PREPARTO | C70: N-BPD | D70: PREPARTON-BPD | E70: =($D$42*'FUENTE DATOS Y ECUACIONES'!$G$55)+('FUENTE DATOS Y ECUACIONES'!$E$55*'ENLACES DATOS'!$D$40)+'FUENTE DATOS Y ECUACIONES'!$C$55 ->  | F70: 10.7 | G70: =F70-($J$41*'FUENTE DATOS Y ECUACIONES'!I33) -> 1.92902514 | H70: =F70+($J$41*'FUENTE DATOS Y ECUACIONES'!I33) -> 19.47097486 | I70: 0.864 | K70: Balance Energía-Proteína
B71: RECRIA | C71: N_CHO_RD | D71: RECRIAN_CHO_RD | E71: ='FUENTE DATOS Y ECUACIONES'!$C$49+('FUENTE DATOS Y ECUACIONES'!$I$49*'ENLACES DATOS'!$D$44) ->  | F71: 195.3333333 | G71: =F71-($J$41*'FUENTE DATOS Y ECUACIONES'!K27) -> 191.3933672 | H71: =F71-($J$41*'FUENTE DATOS Y ECUACIONES'!K27) -> 191.3933672 | I71: 0.861 | K71: Incrementar crecimiento
B72: RECRIA | C72: RUMIA IDX | D72: RECRIARUMIA IDX | E72: ='FUENTE DATOS Y ECUACIONES'!$C$50+('FUENTE DATOS Y ECUACIONES'!$D$50*'ENLACES DATOS'!$D$39)+('ENLACES DATOS'!$D$42*'FUENTE DATOS Y ECUACIONES'!$G$50) ->  | F72: 45.1 | G72: =F72-($J$41*'FUENTE DATOS Y ECUACIONES'!K28) -> 39.86932127 | H72: =F72-($J$41*'FUENTE DATOS Y ECUACIONES'!K28) -> 39.86932127 | I72: 0.968 | K72: Funcionamiento de la rumia
B73: RECRIA | C73: ACID INDEX | D73: RECRIAACID INDEX | E73: ='FUENTE DATOS Y ECUACIONES'!$C$51+('FUENTE DATOS Y ECUACIONES'!$I$51*'ENLACES DATOS'!$D$44) ->  | F73: 41.7 | G73: =F73-($J$41*'FUENTE DATOS Y ECUACIONES'!K29) -> 40.19003311 | H73: =F73-($J$41*'FUENTE DATOS Y ECUACIONES'!K29) -> 40.19003311 | I73: 0.834 | K73: Evitar acidosis
B74: RECRIA | C74: N_CET | D74: RECRIAN_CET | E74: ='FUENTE DATOS Y ECUACIONES'!$C$52+('FUENTE DATOS Y ECUACIONES'!$D$52*'ENLACES DATOS'!$D$39)+('ENLACES DATOS'!$D$41*'FUENTE DATOS Y ECUACIONES'!$F$52)+('FUENTE DATOS Y ECUACIONES'!$H$52*'ENLACES DATOS'!$D$43) ->  | F74: 166.8 | G74: =F74-($J$41*'FUENTE DATOS Y ECUACIONES'!K30) -> 164.8921216 | H74: =F74-($J$41*'FUENTE DATOS Y ECUACIONES'!K30) -> 164.8921216 | I74: 0.772 | K74: Aumentar/Evitar engrasamiento animales
B75: RECRIA | C75: N_GLU | D75: RECRIAN_GLU | E75: =($D$39*'FUENTE DATOS Y ECUACIONES'!$D$53)+('FUENTE DATOS Y ECUACIONES'!$I$53*'ENLACES DATOS'!$D$44) ->  | F75: 183.1666667 | G75: =F75-($J$41*'FUENTE DATOS Y ECUACIONES'!K31) -> 164.9007604 | H75: =F75-($J$41*'FUENTE DATOS Y ECUACIONES'!K31) -> 164.9007604 | I75: 0.999 | K75: Aumento de eficiencia productiva
B76: RECRIA | C76: N-END | D76: RECRIAN-END | E76: =($D$39*'FUENTE DATOS Y ECUACIONES'!$D$54)+'FUENTE DATOS Y ECUACIONES'!$C$54 ->  | F76: 953.3333333 | G76: =F76-($J$41*'FUENTE DATOS Y ECUACIONES'!K32) -> 931.7385809 | H76: =F76-($J$41*'FUENTE DATOS Y ECUACIONES'!K32) -> 931.7385809 | I76: 0.894 | K76: Energía dinámica
B77: RECRIA | C77: N-BPD | D77: RECRIAN-BPD | E77: =($D$42*'FUENTE DATOS Y ECUACIONES'!$G$55)+('FUENTE DATOS Y ECUACIONES'!$E$55*'ENLACES DATOS'!$D$40)+'FUENTE DATOS Y ECUACIONES'!$C$55 ->  | F77: 23.46666667 | G77: =F77-($J$41*'FUENTE DATOS Y ECUACIONES'!K33) -> 23.16116162 | H77: =F77-($J$41*'FUENTE DATOS Y ECUACIONES'!K33) -> 23.16116162 | I77: 0.864 | K77: Balance Energía-Proteína
A83: CAPRINO
A84: OVINO
E85: CAPRINO | F85: PESO VIVO | G85: =IF('HACER RACION'!D13="","",'HACER RACION'!D13) -> 
A86: LECHE | E86: CAPRINO | F86: LITROS/DIA | G86: =IF('HACER RACION'!D14="","",'HACER RACION'!D14) -> 
A87: CARNE | E87: CAPRINO | F87: GRASA LECHE (gramos) | G87: =IF('HACER RACION'!D15="","",'HACER RACION'!D15) -> 
E88: CAPRINO | F88: PROTEINA LECHE (gramos) | G88: =IF('HACER RACION'!D16="","",'HACER RACION'!D16) -> 
E89: CAPRINO | F89: MES DE GESTACION | G89: =IF('HACER RACION'!D17="","",'HACER RACION'!D17) -> 
A90: CEBO | E90: CAPRINO | F90: MES DE LACTACION | G90: =IF('HACER RACION'!D18="","",'HACER RACION'!D18) -> 
A91: ORDEÑO | E91: CAPRINO | F91: DISTANCIA RECORRIDA (Km) | G91: =IF('HACER RACION'!D19="","",'HACER RACION'!D19) -> 
A92: PREPARTO | E92: OVINO | F92: TIPO OVEJA | G92: =IF('HACER RACION'!D21="","",'HACER RACION'!D21) -> 
A93: RECRIA | E93: OVINO | F93: PESO VIVO | G93: =IF('HACER RACION'!D22="","",'HACER RACION'!D22) -> 
E94: OVINO | F94: LECHE/DIA | G94: =IF('HACER RACION'!D23="","",'HACER RACION'!D23) -> 
E95: OVINO | F95: GRASA LECHE (gramos) | G95: =IF('HACER RACION'!D24="","",'HACER RACION'!D24) -> 
E96: OVINO | F96: PROTEINA LECHE (gramos) | G96: =IF('HACER RACION'!D25="","",'HACER RACION'!D25) -> 
E97: OVINO | F97: PESO CAMADA | G97: =IF('HACER RACION'!D26="","",'HACER RACION'!D26) -> 
E98: OVINO | F98: DIAS GESTACION | G98: =IF('HACER RACION'!D27="","",'HACER RACION'!D27) -> 
E99: OVINO | F99: TEMPERATURA | G99: =IF('HACER RACION'!D28="","",'HACER RACION'!D28) -> 
I101: ESPECIE RACION | J101: =IF('HACER RACION'!C10="","",'HACER RACION'!C10) -> 
E103: CAPRINO | F103: IMS (KgMS) | G103: =CONCATENATE(D103,E103,F103) -> CAPRINOIMS (KgMS) | H103: =IF(G85="","",'INGESTA MS caprino'!C49) ->  | J103: =IF($J$101="","",$J$101) ->  | K103: IMS (KgMS) | L103: =CONCATENATE(I103,J103,K103) -> IMS (KgMS) | M103: =IF($J$101="","",VLOOKUP(L103,$G$103:$H$116,2,FALSE)) -> 
E104: CAPRINO | F104: UF | G104: CAPRINOUF | H104: =IF(G85="","",'ENERGIA caprino'!E51) ->  | J104: =IF($J$101="","",$J$101) ->  | K104: UF | L104: UF | M104: =IF($J$101="","",VLOOKUP(L104,$G$103:$H$116,2,FALSE)) -> 
E105: CAPRINO | F105: gr PDI | G105: CAPRINOgr PDI | H105: =IF(G85="","",'PROTEINA caprino'!C54) ->  | K105: gr PDI | L105: gr PDI
E106: CAPRINO | F106: gr FND | G106: CAPRINOgr FND | H106: =IF(G85="","",(G85*'FUENTE DATOS Y ECUACIONES'!C68)) ->  | K106: gr FND | L106: gr FND
E107: CAPRINO | F107: gr GB (máximo) | G107: CAPRINOgr GB (máximo) | H107: =IF(G85="","",H103*'FUENTE DATOS Y ECUACIONES'!C69) ->  | K107: gr GB (máximo) | L107: gr GB (máximo)
E108: CAPRINO | F108: gr Ca | G108: CAPRINOgr Ca | H108: =IF(G85="","",H103*'FUENTE DATOS Y ECUACIONES'!C66) ->  | K108: gr Ca | L108: gr Ca
E109: CAPRINO | F109: gr P | G109: CAPRINOgr P | H109: =IF(G85="","",'FUENTE DATOS Y ECUACIONES'!C67*H103) ->  | K109: gr P | L109: gr P
E110: OVINO | F110: IMS (KgMS) | G110: OVINOIMS (KgMS) | H110: =IF(G93="","",'INGESTA MS ovino'!C47) -> 
E111: OVINO | F111: UF | G111: OVINOUF | H111: =IF(G93="","",'ENERGIA ovino'!E62) -> 
E112: OVINO | F112: gr PDI | G112: OVINOgr PDI | H112: =IF(G93="","",'PROTEINA ovino'!C60) -> 
E113: OVINO | F113: gr FND | G113: OVINOgr FND | H113: =IF(G93="","",'FUENTE DATOS Y ECUACIONES'!C68*'ENLACES DATOS'!G93) -> 
E114: OVINO | F114: gr GB (máximo) | G114: OVINOgr GB (máximo) | H114: =IF(G93="","",'FUENTE DATOS Y ECUACIONES'!C69*'ENLACES DATOS'!H110) -> 
E115: OVINO | F115: gr Ca | G115: OVINOgr Ca | H115: =IF(G93="","",'FUENTE DATOS Y ECUACIONES'!C66*'ENLACES DATOS'!H110) -> 
E116: OVINO | F116: gr P | G116: OVINOgr P | H116: =IF(G93="","",'FUENTE DATOS Y ECUACIONES'!C67*'ENLACES DATOS'!H110) -> 
A125: 1 | B125: 2 | C125: 3 | D125: 4 | E125: 5 | F125: 6 | G125: 7 | H125: 8 | I125: 9 | J125: 10 | K125: 11 | L125: 12 | M125: 13 | N125: 14 | O125: 15 | P125: 16 | Q125: 17 | R125: 18 | S125: 19 | T125: 20
A126: Descripción resumida | B126: Kg/dia | C126: MS* | D126: PB* | E126: FB* | F126: GB** | G126: Cenizas* | H126: Almidón am** | I126: Azúcar | J126: FND** | K126: FAD** | L126: LAD** | M126: UFL | N126: UFC | O126: PDIE | P126: PDIN | Q126: PDIA | R126: Ca | S126: P | T126: Humedad
A127: =IF('HACER RACION'!B32="","",'HACER RACION'!B32) ->  | B127: =IF('HACER RACION'!D32="","",'HACER RACION'!D32) ->  | C127: =IF($A127="","",VLOOKUP($A127,'MATERIAS PRIMAS'!$A$3:$T$119,C$125,FALSE)) ->  | D127: =IF($A127="","",VLOOKUP($A127,'MATERIAS PRIMAS'!$A$3:$T$119,D$125,FALSE)) ->  | E127: =IF($A127="","",VLOOKUP($A127,'MATERIAS PRIMAS'!$A$3:$T$119,E$125,FALSE)) ->  | F127: =IF($A127="","",VLOOKUP($A127,'MATERIAS PRIMAS'!$A$3:$T$119,F$125,FALSE)) ->  | G127: =IF($A127="","",VLOOKUP($A127,'MATERIAS PRIMAS'!$A$3:$T$119,G$125,FALSE)) ->  | H127: =IF($A127="","",VLOOKUP($A127,'MATERIAS PRIMAS'!$A$3:$T$119,H$125,FALSE)) ->  | I127: =IF($A127="","",VLOOKUP($A127,'MATERIAS PRIMAS'!$A$3:$T$119,I$125,FALSE)) ->  | J127: =IF($A127="","",VLOOKUP($A127,'MATERIAS PRIMAS'!$A$3:$T$119,J$125,FALSE)) ->  | K127: =IF($A127="","",VLOOKUP($A127,'MATERIAS PRIMAS'!$A$3:$T$119,K$125,FALSE)) ->  | L127: =IF($A127="","",VLOOKUP($A127,'MATERIAS PRIMAS'!$A$3:$T$119,L$125,FALSE)) ->  | M127: =IF($A127="","",VLOOKUP($A127,'MATERIAS PRIMAS'!$A$3:$T$119,M$125,FALSE)) ->  | N127: =IF($A127="","",VLOOKUP($A127,'MATERIAS PRIMAS'!$A$3:$T$119,N$125,FALSE)) ->  | O127: =IF($A127="","",VLOOKUP($A127,'MATERIAS PRIMAS'!$A$3:$T$119,O$125,FALSE)) ->  | P127: =IF($A127="","",VLOOKUP($A127,'MATERIAS PRIMAS'!$A$3:$T$119,P$125,FALSE)) ->  | Q127: =IF($A127="","",VLOOKUP($A127,'MATERIAS PRIMAS'!$A$3:$T$119,Q$125,FALSE)) ->  | R127: =IF($A127="","",VLOOKUP($A127,'MATERIAS PRIMAS'!$A$3:$T$119,R$125,FALSE)) ->  | S127: =IF($A127="","",VLOOKUP($A127,'MATERIAS PRIMAS'!$A$3:$T$119,S$125,FALSE)) ->  | T127: =IF($A127="","",VLOOKUP($A127,'MATERIAS PRIMAS'!$A$3:$T$119,T$125,FALSE)) -> 
A128: =IF('HACER RACION'!B33="","",'HACER RACION'!B33) ->  | B128: =IF('HACER RACION'!D33="","",'HACER RACION'!D33) ->  | C128: =IF($A128="","",VLOOKUP($A128,'MATERIAS PRIMAS'!$A$3:$T$119,C$125,FALSE)) ->  | D128: =IF($A128="","",VLOOKUP($A128,'MATERIAS PRIMAS'!$A$3:$T$119,D$125,FALSE)) ->  | E128: =IF($A128="","",VLOOKUP($A128,'MATERIAS PRIMAS'!$A$3:$T$119,E$125,FALSE)) ->  | F128: =IF($A128="","",VLOOKUP($A128,'MATERIAS PRIMAS'!$A$3:$T$119,F$125,FALSE)) ->  | G128: =IF($A128="","",VLOOKUP($A128,'MATERIAS PRIMAS'!$A$3:$T$119,G$125,FALSE)) ->  | H128: =IF($A128="","",VLOOKUP($A128,'MATERIAS PRIMAS'!$A$3:$T$119,H$125,FALSE)) ->  | I128: =IF($A128="","",VLOOKUP($A128,'MATERIAS PRIMAS'!$A$3:$T$119,I$125,FALSE)) ->  | J128: =IF($A128="","",VLOOKUP($A128,'MATERIAS PRIMAS'!$A$3:$T$119,J$125,FALSE)) ->  | K128: =IF($A128="","",VLOOKUP($A128,'MATERIAS PRIMAS'!$A$3:$T$119,K$125,FALSE)) ->  | L128: =IF($A128="","",VLOOKUP($A128,'MATERIAS PRIMAS'!$A$3:$T$119,L$125,FALSE)) ->  | M128: =IF($A128="","",VLOOKUP($A128,'MATERIAS PRIMAS'!$A$3:$T$119,M$125,FALSE)) ->  | N128: =IF($A128="","",VLOOKUP($A128,'MATERIAS PRIMAS'!$A$3:$T$119,N$125,FALSE)) ->  | O128: =IF($A128="","",VLOOKUP($A128,'MATERIAS PRIMAS'!$A$3:$T$119,O$125,FALSE)) ->  | P128: =IF($A128="","",VLOOKUP($A128,'MATERIAS PRIMAS'!$A$3:$T$119,P$125,FALSE)) ->  | Q128: =IF($A128="","",VLOOKUP($A128,'MATERIAS PRIMAS'!$A$3:$T$119,Q$125,FALSE)) ->  | R128: =IF($A128="","",VLOOKUP($A128,'MATERIAS PRIMAS'!$A$3:$T$119,R$125,FALSE)) ->  | S128: =IF($A128="","",VLOOKUP($A128,'MATERIAS PRIMAS'!$A$3:$T$119,S$125,FALSE)) ->  | T128: =IF($A128="","",VLOOKUP($A128,'MATERIAS PRIMAS'!$A$3:$T$119,T$125,FALSE)) -> 
A129: =IF('HACER RACION'!B34="","",'HACER RACION'!B34) ->  | B129: =IF('HACER RACION'!D34="","",'HACER RACION'!D34) ->  | C129: =IF($A129="","",VLOOKUP($A129,'MATERIAS PRIMAS'!$A$3:$T$119,C$125,FALSE)) ->  | D129: =IF($A129="","",VLOOKUP($A129,'MATERIAS PRIMAS'!$A$3:$T$119,D$125,FALSE)) ->  | E129: =IF($A129="","",VLOOKUP($A129,'MATERIAS PRIMAS'!$A$3:$T$119,E$125,FALSE)) ->  | F129: =IF($A129="","",VLOOKUP($A129,'MATERIAS PRIMAS'!$A$3:$T$119,F$125,FALSE)) ->  | G129: =IF($A129="","",VLOOKUP($A129,'MATERIAS PRIMAS'!$A$3:$T$119,G$125,FALSE)) ->  | H129: =IF($A129="","",VLOOKUP($A129,'MATERIAS PRIMAS'!$A$3:$T$119,H$125,FALSE)) ->  | I129: =IF($A129="","",VLOOKUP($A129,'MATERIAS PRIMAS'!$A$3:$T$119,I$125,FALSE)) ->  | J129: =IF($A129="","",VLOOKUP($A129,'MATERIAS PRIMAS'!$A$3:$T$119,J$125,FALSE)) ->  | K129: =IF($A129="","",VLOOKUP($A129,'MATERIAS PRIMAS'!$A$3:$T$119,K$125,FALSE)) ->  | L129: =IF($A129="","",VLOOKUP($A129,'MATERIAS PRIMAS'!$A$3:$T$119,L$125,FALSE)) ->  | M129: =IF($A129="","",VLOOKUP($A129,'MATERIAS PRIMAS'!$A$3:$T$119,M$125,FALSE)) ->  | N129: =IF($A129="","",VLOOKUP($A129,'MATERIAS PRIMAS'!$A$3:$T$119,N$125,FALSE)) ->  | O129: =IF($A129="","",VLOOKUP($A129,'MATERIAS PRIMAS'!$A$3:$T$119,O$125,FALSE)) ->  | P129: =IF($A129="","",VLOOKUP($A129,'MATERIAS PRIMAS'!$A$3:$T$119,P$125,FALSE)) ->  | Q129: =IF($A129="","",VLOOKUP($A129,'MATERIAS PRIMAS'!$A$3:$T$119,Q$125,FALSE)) ->  | R129: =IF($A129="","",VLOOKUP($A129,'MATERIAS PRIMAS'!$A$3:$T$119,R$125,FALSE)) ->  | S129: =IF($A129="","",VLOOKUP($A129,'MATERIAS PRIMAS'!$A$3:$T$119,S$125,FALSE)) ->  | T129: =IF($A129="","",VLOOKUP($A129,'MATERIAS PRIMAS'!$A$3:$T$119,T$125,FALSE)) -> 
A130: =IF('HACER RACION'!B35="","",'HACER RACION'!B35) ->  | B130: =IF('HACER RACION'!D35="","",'HACER RACION'!D35) ->  | C130: =IF($A130="","",VLOOKUP($A130,'MATERIAS PRIMAS'!$A$3:$T$119,C$125,FALSE)) ->  | D130: =IF($A130="","",VLOOKUP($A130,'MATERIAS PRIMAS'!$A$3:$T$119,D$125,FALSE)) ->  | E130: =IF($A130="","",VLOOKUP($A130,'MATERIAS PRIMAS'!$A$3:$T$119,E$125,FALSE)) ->  | F130: =IF($A130="","",VLOOKUP($A130,'MATERIAS PRIMAS'!$A$3:$T$119,F$125,FALSE)) ->  | G130: =IF($A130="","",VLOOKUP($A130,'MATERIAS PRIMAS'!$A$3:$T$119,G$125,FALSE)) ->  | H130: =IF($A130="","",VLOOKUP($A130,'MATERIAS PRIMAS'!$A$3:$T$119,H$125,FALSE)) ->  | I130: =IF($A130="","",VLOOKUP($A130,'MATERIAS PRIMAS'!$A$3:$T$119,I$125,FALSE)) ->  | J130: =IF($A130="","",VLOOKUP($A130,'MATERIAS PRIMAS'!$A$3:$T$119,J$125,FALSE)) ->  | K130: =IF($A130="","",VLOOKUP($A130,'MATERIAS PRIMAS'!$A$3:$T$119,K$125,FALSE)) ->  | L130: =IF($A130="","",VLOOKUP($A130,'MATERIAS PRIMAS'!$A$3:$T$119,L$125,FALSE)) ->  | M130: =IF($A130="","",VLOOKUP($A130,'MATERIAS PRIMAS'!$A$3:$T$119,M$125,FALSE)) ->  | N130: =IF($A130="","",VLOOKUP($A130,'MATERIAS PRIMAS'!$A$3:$T$119,N$125,FALSE)) ->  | O130: =IF($A130="","",VLOOKUP($A130,'MATERIAS PRIMAS'!$A$3:$T$119,O$125,FALSE)) ->  | P130: =IF($A130="","",VLOOKUP($A130,'MATERIAS PRIMAS'!$A$3:$T$119,P$125,FALSE)) ->  | Q130: =IF($A130="","",VLOOKUP($A130,'MATERIAS PRIMAS'!$A$3:$T$119,Q$125,FALSE)) ->  | R130: =IF($A130="","",VLOOKUP($A130,'MATERIAS PRIMAS'!$A$3:$T$119,R$125,FALSE)) ->  | S130: =IF($A130="","",VLOOKUP($A130,'MATERIAS PRIMAS'!$A$3:$T$119,S$125,FALSE)) ->  | T130: =IF($A130="","",VLOOKUP($A130,'MATERIAS PRIMAS'!$A$3:$T$119,T$125,FALSE)) -> 
A131: =IF('HACER RACION'!B36="","",'HACER RACION'!B36) ->  | B131: =IF('HACER RACION'!D36="","",'HACER RACION'!D36) ->  | C131: =IF($A131="","",VLOOKUP($A131,'MATERIAS PRIMAS'!$A$3:$T$119,C$125,FALSE)) ->  | D131: =IF($A131="","",VLOOKUP($A131,'MATERIAS PRIMAS'!$A$3:$T$119,D$125,FALSE)) ->  | E131: =IF($A131="","",VLOOKUP($A131,'MATERIAS PRIMAS'!$A$3:$T$119,E$125,FALSE)) ->  | F131: =IF($A131="","",VLOOKUP($A131,'MATERIAS PRIMAS'!$A$3:$T$119,F$125,FALSE)) ->  | G131: =IF($A131="","",VLOOKUP($A131,'MATERIAS PRIMAS'!$A$3:$T$119,G$125,FALSE)) ->  | H131: =IF($A131="","",VLOOKUP($A131,'MATERIAS PRIMAS'!$A$3:$T$119,H$125,FALSE)) ->  | I131: =IF($A131="","",VLOOKUP($A131,'MATERIAS PRIMAS'!$A$3:$T$119,I$125,FALSE)) ->  | J131: =IF($A131="","",VLOOKUP($A131,'MATERIAS PRIMAS'!$A$3:$T$119,J$125,FALSE)) ->  | K131: =IF($A131="","",VLOOKUP($A131,'MATERIAS PRIMAS'!$A$3:$T$119,K$125,FALSE)) ->  | L131: =IF($A131="","",VLOOKUP($A131,'MATERIAS PRIMAS'!$A$3:$T$119,L$125,FALSE)) ->  | M131: =IF($A131="","",VLOOKUP($A131,'MATERIAS PRIMAS'!$A$3:$T$119,M$125,FALSE)) ->  | N131: =IF($A131="","",VLOOKUP($A131,'MATERIAS PRIMAS'!$A$3:$T$119,N$125,FALSE)) ->  | O131: =IF($A131="","",VLOOKUP($A131,'MATERIAS PRIMAS'!$A$3:$T$119,O$125,FALSE)) ->  | P131: =IF($A131="","",VLOOKUP($A131,'MATERIAS PRIMAS'!$A$3:$T$119,P$125,FALSE)) ->  | Q131: =IF($A131="","",VLOOKUP($A131,'MATERIAS PRIMAS'!$A$3:$T$119,Q$125,FALSE)) ->  | R131: =IF($A131="","",VLOOKUP($A131,'MATERIAS PRIMAS'!$A$3:$T$119,R$125,FALSE)) ->  | S131: =IF($A131="","",VLOOKUP($A131,'MATERIAS PRIMAS'!$A$3:$T$119,S$125,FALSE)) ->  | T131: =IF($A131="","",VLOOKUP($A131,'MATERIAS PRIMAS'!$A$3:$T$119,T$125,FALSE)) -> 
A132: =IF('HACER RACION'!B37="","",'HACER RACION'!B37) ->  | B132: =IF('HACER RACION'!D37="","",'HACER RACION'!D37) ->  | C132: =IF($A132="","",VLOOKUP($A132,'MATERIAS PRIMAS'!$A$3:$T$119,C$125,FALSE)) ->  | D132: =IF($A132="","",VLOOKUP($A132,'MATERIAS PRIMAS'!$A$3:$T$119,D$125,FALSE)) ->  | E132: =IF($A132="","",VLOOKUP($A132,'MATERIAS PRIMAS'!$A$3:$T$119,E$125,FALSE)) ->  | F132: =IF($A132="","",VLOOKUP($A132,'MATERIAS PRIMAS'!$A$3:$T$119,F$125,FALSE)) ->  | G132: =IF($A132="","",VLOOKUP($A132,'MATERIAS PRIMAS'!$A$3:$T$119,G$125,FALSE)) ->  | H132: =IF($A132="","",VLOOKUP($A132,'MATERIAS PRIMAS'!$A$3:$T$119,H$125,FALSE)) ->  | I132: =IF($A132="","",VLOOKUP($A132,'MATERIAS PRIMAS'!$A$3:$T$119,I$125,FALSE)) ->  | J132: =IF($A132="","",VLOOKUP($A132,'MATERIAS PRIMAS'!$A$3:$T$119,J$125,FALSE)) ->  | K132: =IF($A132="","",VLOOKUP($A132,'MATERIAS PRIMAS'!$A$3:$T$119,K$125,FALSE)) ->  | L132: =IF($A132="","",VLOOKUP($A132,'MATERIAS PRIMAS'!$A$3:$T$119,L$125,FALSE)) ->  | M132: =IF($A132="","",VLOOKUP($A132,'MATERIAS PRIMAS'!$A$3:$T$119,M$125,FALSE)) ->  | N132: =IF($A132="","",VLOOKUP($A132,'MATERIAS PRIMAS'!$A$3:$T$119,N$125,FALSE)) ->  | O132: =IF($A132="","",VLOOKUP($A132,'MATERIAS PRIMAS'!$A$3:$T$119,O$125,FALSE)) ->  | P132: =IF($A132="","",VLOOKUP($A132,'MATERIAS PRIMAS'!$A$3:$T$119,P$125,FALSE)) ->  | Q132: =IF($A132="","",VLOOKUP($A132,'MATERIAS PRIMAS'!$A$3:$T$119,Q$125,FALSE)) ->  | R132: =IF($A132="","",VLOOKUP($A132,'MATERIAS PRIMAS'!$A$3:$T$119,R$125,FALSE)) ->  | S132: =IF($A132="","",VLOOKUP($A132,'MATERIAS PRIMAS'!$A$3:$T$119,S$125,FALSE)) ->  | T132: =IF($A132="","",VLOOKUP($A132,'MATERIAS PRIMAS'!$A$3:$T$119,T$125,FALSE)) -> 
A133: =IF('HACER RACION'!B38="","",'HACER RACION'!B38) ->  | B133: =IF('HACER RACION'!D38="","",'HACER RACION'!D38) ->  | C133: =IF($A133="","",VLOOKUP($A133,'MATERIAS PRIMAS'!$A$3:$T$119,C$125,FALSE)) ->  | D133: =IF($A133="","",VLOOKUP($A133,'MATERIAS PRIMAS'!$A$3:$T$119,D$125,FALSE)) ->  | E133: =IF($A133="","",VLOOKUP($A133,'MATERIAS PRIMAS'!$A$3:$T$119,E$125,FALSE)) ->  | F133: =IF($A133="","",VLOOKUP($A133,'MATERIAS PRIMAS'!$A$3:$T$119,F$125,FALSE)) ->  | G133: =IF($A133="","",VLOOKUP($A133,'MATERIAS PRIMAS'!$A$3:$T$119,G$125,FALSE)) ->  | H133: =IF($A133="","",VLOOKUP($A133,'MATERIAS PRIMAS'!$A$3:$T$119,H$125,FALSE)) ->  | I133: =IF($A133="","",VLOOKUP($A133,'MATERIAS PRIMAS'!$A$3:$T$119,I$125,FALSE)) ->  | J133: =IF($A133="","",VLOOKUP($A133,'MATERIAS PRIMAS'!$A$3:$T$119,J$125,FALSE)) ->  | K133: =IF($A133="","",VLOOKUP($A133,'MATERIAS PRIMAS'!$A$3:$T$119,K$125,FALSE)) ->  | L133: =IF($A133="","",VLOOKUP($A133,'MATERIAS PRIMAS'!$A$3:$T$119,L$125,FALSE)) ->  | M133: =IF($A133="","",VLOOKUP($A133,'MATERIAS PRIMAS'!$A$3:$T$119,M$125,FALSE)) ->  | N133: =IF($A133="","",VLOOKUP($A133,'MATERIAS PRIMAS'!$A$3:$T$119,N$125,FALSE)) ->  | O133: =IF($A133="","",VLOOKUP($A133,'MATERIAS PRIMAS'!$A$3:$T$119,O$125,FALSE)) ->  | P133: =IF($A133="","",VLOOKUP($A133,'MATERIAS PRIMAS'!$A$3:$T$119,P$125,FALSE)) ->  | Q133: =IF($A133="","",VLOOKUP($A133,'MATERIAS PRIMAS'!$A$3:$T$119,Q$125,FALSE)) ->  | R133: =IF($A133="","",VLOOKUP($A133,'MATERIAS PRIMAS'!$A$3:$T$119,R$125,FALSE)) ->  | S133: =IF($A133="","",VLOOKUP($A133,'MATERIAS PRIMAS'!$A$3:$T$119,S$125,FALSE)) ->  | T133: =IF($A133="","",VLOOKUP($A133,'MATERIAS PRIMAS'!$A$3:$T$119,T$125,FALSE)) -> 
A134: =IF('HACER RACION'!B39="","",'HACER RACION'!B39) ->  | B134: =IF('HACER RACION'!D39="","",'HACER RACION'!D39) ->  | C134: =IF($A134="","",VLOOKUP($A134,'MATERIAS PRIMAS'!$A$3:$T$119,C$125,FALSE)) ->  | D134: =IF($A134="","",VLOOKUP($A134,'MATERIAS PRIMAS'!$A$3:$T$119,D$125,FALSE)) ->  | E134: =IF($A134="","",VLOOKUP($A134,'MATERIAS PRIMAS'!$A$3:$T$119,E$125,FALSE)) ->  | F134: =IF($A134="","",VLOOKUP($A134,'MATERIAS PRIMAS'!$A$3:$T$119,F$125,FALSE)) ->  | G134: =IF($A134="","",VLOOKUP($A134,'MATERIAS PRIMAS'!$A$3:$T$119,G$125,FALSE)) ->  | H134: =IF($A134="","",VLOOKUP($A134,'MATERIAS PRIMAS'!$A$3:$T$119,H$125,FALSE)) ->  | I134: =IF($A134="","",VLOOKUP($A134,'MATERIAS PRIMAS'!$A$3:$T$119,I$125,FALSE)) ->  | J134: =IF($A134="","",VLOOKUP($A134,'MATERIAS PRIMAS'!$A$3:$T$119,J$125,FALSE)) ->  | K134: =IF($A134="","",VLOOKUP($A134,'MATERIAS PRIMAS'!$A$3:$T$119,K$125,FALSE)) ->  | L134: =IF($A134="","",VLOOKUP($A134,'MATERIAS PRIMAS'!$A$3:$T$119,L$125,FALSE)) ->  | M134: =IF($A134="","",VLOOKUP($A134,'MATERIAS PRIMAS'!$A$3:$T$119,M$125,FALSE)) ->  | N134: =IF($A134="","",VLOOKUP($A134,'MATERIAS PRIMAS'!$A$3:$T$119,N$125,FALSE)) ->  | O134: =IF($A134="","",VLOOKUP($A134,'MATERIAS PRIMAS'!$A$3:$T$119,O$125,FALSE)) ->  | P134: =IF($A134="","",VLOOKUP($A134,'MATERIAS PRIMAS'!$A$3:$T$119,P$125,FALSE)) ->  | Q134: =IF($A134="","",VLOOKUP($A134,'MATERIAS PRIMAS'!$A$3:$T$119,Q$125,FALSE)) ->  | R134: =IF($A134="","",VLOOKUP($A134,'MATERIAS PRIMAS'!$A$3:$T$119,R$125,FALSE)) ->  | S134: =IF($A134="","",VLOOKUP($A134,'MATERIAS PRIMAS'!$A$3:$T$119,S$125,FALSE)) ->  | T134: =IF($A134="","",VLOOKUP($A134,'MATERIAS PRIMAS'!$A$3:$T$119,T$125,FALSE)) -> 
A135: =IF('HACER RACION'!B40="","",'HACER RACION'!B40) ->  | B135: =IF('HACER RACION'!D40="","",'HACER RACION'!D40) ->  | C135: =IF($A135="","",VLOOKUP($A135,'MATERIAS PRIMAS'!$A$3:$T$119,C$125,FALSE)) ->  | D135: =IF($A135="","",VLOOKUP($A135,'MATERIAS PRIMAS'!$A$3:$T$119,D$125,FALSE)) ->  | E135: =IF($A135="","",VLOOKUP($A135,'MATERIAS PRIMAS'!$A$3:$T$119,E$125,FALSE)) ->  | F135: =IF($A135="","",VLOOKUP($A135,'MATERIAS PRIMAS'!$A$3:$T$119,F$125,FALSE)) ->  | G135: =IF($A135="","",VLOOKUP($A135,'MATERIAS PRIMAS'!$A$3:$T$119,G$125,FALSE)) ->  | H135: =IF($A135="","",VLOOKUP($A135,'MATERIAS PRIMAS'!$A$3:$T$119,H$125,FALSE)) ->  | I135: =IF($A135="","",VLOOKUP($A135,'MATERIAS PRIMAS'!$A$3:$T$119,I$125,FALSE)) ->  | J135: =IF($A135="","",VLOOKUP($A135,'MATERIAS PRIMAS'!$A$3:$T$119,J$125,FALSE)) ->  | K135: =IF($A135="","",VLOOKUP($A135,'MATERIAS PRIMAS'!$A$3:$T$119,K$125,FALSE)) ->  | L135: =IF($A135="","",VLOOKUP($A135,'MATERIAS PRIMAS'!$A$3:$T$119,L$125,FALSE)) ->  | M135: =IF($A135="","",VLOOKUP($A135,'MATERIAS PRIMAS'!$A$3:$T$119,M$125,FALSE)) ->  | N135: =IF($A135="","",VLOOKUP($A135,'MATERIAS PRIMAS'!$A$3:$T$119,N$125,FALSE)) ->  | O135: =IF($A135="","",VLOOKUP($A135,'MATERIAS PRIMAS'!$A$3:$T$119,O$125,FALSE)) ->  | P135: =IF($A135="","",VLOOKUP($A135,'MATERIAS PRIMAS'!$A$3:$T$119,P$125,FALSE)) ->  | Q135: =IF($A135="","",VLOOKUP($A135,'MATERIAS PRIMAS'!$A$3:$T$119,Q$125,FALSE)) ->  | R135: =IF($A135="","",VLOOKUP($A135,'MATERIAS PRIMAS'!$A$3:$T$119,R$125,FALSE)) ->  | S135: =IF($A135="","",VLOOKUP($A135,'MATERIAS PRIMAS'!$A$3:$T$119,S$125,FALSE)) ->  | T135: =IF($A135="","",VLOOKUP($A135,'MATERIAS PRIMAS'!$A$3:$T$119,T$125,FALSE)) -> 
A136: =IF('HACER RACION'!B41="","",'HACER RACION'!B41) ->  | B136: =IF('HACER RACION'!D41="","",'HACER RACION'!D41) ->  | C136: =IF($A136="","",VLOOKUP($A136,'MATERIAS PRIMAS'!$A$3:$T$119,C$125,FALSE)) ->  | D136: =IF($A136="","",VLOOKUP($A136,'MATERIAS PRIMAS'!$A$3:$T$119,D$125,FALSE)) ->  | E136: =IF($A136="","",VLOOKUP($A136,'MATERIAS PRIMAS'!$A$3:$T$119,E$125,FALSE)) ->  | F136: =IF($A136="","",VLOOKUP($A136,'MATERIAS PRIMAS'!$A$3:$T$119,F$125,FALSE)) ->  | G136: =IF($A136="","",VLOOKUP($A136,'MATERIAS PRIMAS'!$A$3:$T$119,G$125,FALSE)) ->  | H136: =IF($A136="","",VLOOKUP($A136,'MATERIAS PRIMAS'!$A$3:$T$119,H$125,FALSE)) ->  | I136: =IF($A136="","",VLOOKUP($A136,'MATERIAS PRIMAS'!$A$3:$T$119,I$125,FALSE)) ->  | J136: =IF($A136="","",VLOOKUP($A136,'MATERIAS PRIMAS'!$A$3:$T$119,J$125,FALSE)) ->  | K136: =IF($A136="","",VLOOKUP($A136,'MATERIAS PRIMAS'!$A$3:$T$119,K$125,FALSE)) ->  | L136: =IF($A136="","",VLOOKUP($A136,'MATERIAS PRIMAS'!$A$3:$T$119,L$125,FALSE)) ->  | M136: =IF($A136="","",VLOOKUP($A136,'MATERIAS PRIMAS'!$A$3:$T$119,M$125,FALSE)) ->  | N136: =IF($A136="","",VLOOKUP($A136,'MATERIAS PRIMAS'!$A$3:$T$119,N$125,FALSE)) ->  | O136: =IF($A136="","",VLOOKUP($A136,'MATERIAS PRIMAS'!$A$3:$T$119,O$125,FALSE)) ->  | P136: =IF($A136="","",VLOOKUP($A136,'MATERIAS PRIMAS'!$A$3:$T$119,P$125,FALSE)) ->  | Q136: =IF($A136="","",VLOOKUP($A136,'MATERIAS PRIMAS'!$A$3:$T$119,Q$125,FALSE)) ->  | R136: =IF($A136="","",VLOOKUP($A136,'MATERIAS PRIMAS'!$A$3:$T$119,R$125,FALSE)) ->  | S136: =IF($A136="","",VLOOKUP($A136,'MATERIAS PRIMAS'!$A$3:$T$119,S$125,FALSE)) ->  | T136: =IF($A136="","",VLOOKUP($A136,'MATERIAS PRIMAS'!$A$3:$T$119,T$125,FALSE)) -> 
A137: =IF('HACER RACION'!B42="","",'HACER RACION'!B42) ->  | B137: =IF('HACER RACION'!D42="","",'HACER RACION'!D42) ->  | C137: =IF($A137="","",VLOOKUP($A137,'MATERIAS PRIMAS'!$A$3:$T$119,C$125,FALSE)) ->  | D137: =IF($A137="","",VLOOKUP($A137,'MATERIAS PRIMAS'!$A$3:$T$119,D$125,FALSE)) ->  | E137: =IF($A137="","",VLOOKUP($A137,'MATERIAS PRIMAS'!$A$3:$T$119,E$125,FALSE)) ->  | F137: =IF($A137="","",VLOOKUP($A137,'MATERIAS PRIMAS'!$A$3:$T$119,F$125,FALSE)) ->  | G137: =IF($A137="","",VLOOKUP($A137,'MATERIAS PRIMAS'!$A$3:$T$119,G$125,FALSE)) ->  | H137: =IF($A137="","",VLOOKUP($A137,'MATERIAS PRIMAS'!$A$3:$T$119,H$125,FALSE)) ->  | I137: =IF($A137="","",VLOOKUP($A137,'MATERIAS PRIMAS'!$A$3:$T$119,I$125,FALSE)) ->  | J137: =IF($A137="","",VLOOKUP($A137,'MATERIAS PRIMAS'!$A$3:$T$119,J$125,FALSE)) ->  | K137: =IF($A137="","",VLOOKUP($A137,'MATERIAS PRIMAS'!$A$3:$T$119,K$125,FALSE)) ->  | L137: =IF($A137="","",VLOOKUP($A137,'MATERIAS PRIMAS'!$A$3:$T$119,L$125,FALSE)) ->  | M137: =IF($A137="","",VLOOKUP($A137,'MATERIAS PRIMAS'!$A$3:$T$119,M$125,FALSE)) ->  | N137: =IF($A137="","",VLOOKUP($A137,'MATERIAS PRIMAS'!$A$3:$T$119,N$125,FALSE)) ->  | O137: =IF($A137="","",VLOOKUP($A137,'MATERIAS PRIMAS'!$A$3:$T$119,O$125,FALSE)) ->  | P137: =IF($A137="","",VLOOKUP($A137,'MATERIAS PRIMAS'!$A$3:$T$119,P$125,FALSE)) ->  | Q137: =IF($A137="","",VLOOKUP($A137,'MATERIAS PRIMAS'!$A$3:$T$119,Q$125,FALSE)) ->  | R137: =IF($A137="","",VLOOKUP($A137,'MATERIAS PRIMAS'!$A$3:$T$119,R$125,FALSE)) ->  | S137: =IF($A137="","",VLOOKUP($A137,'MATERIAS PRIMAS'!$A$3:$T$119,S$125,FALSE)) ->  | T137: =IF($A137="","",VLOOKUP($A137,'MATERIAS PRIMAS'!$A$3:$T$119,T$125,FALSE)) -> 
A138: =IF('HACER RACION'!B43="","",'HACER RACION'!B43) ->  | B138: =IF('HACER RACION'!D43="","",'HACER RACION'!D43) ->  | C138: =IF($A138="","",VLOOKUP($A138,'MATERIAS PRIMAS'!$A$3:$T$119,C$125,FALSE)) ->  | D138: =IF($A138="","",VLOOKUP($A138,'MATERIAS PRIMAS'!$A$3:$T$119,D$125,FALSE)) ->  | E138: =IF($A138="","",VLOOKUP($A138,'MATERIAS PRIMAS'!$A$3:$T$119,E$125,FALSE)) ->  | F138: =IF($A138="","",VLOOKUP($A138,'MATERIAS PRIMAS'!$A$3:$T$119,F$125,FALSE)) ->  | G138: =IF($A138="","",VLOOKUP($A138,'MATERIAS PRIMAS'!$A$3:$T$119,G$125,FALSE)) ->  | H138: =IF($A138="","",VLOOKUP($A138,'MATERIAS PRIMAS'!$A$3:$T$119,H$125,FALSE)) ->  | I138: =IF($A138="","",VLOOKUP($A138,'MATERIAS PRIMAS'!$A$3:$T$119,I$125,FALSE)) ->  | J138: =IF($A138="","",VLOOKUP($A138,'MATERIAS PRIMAS'!$A$3:$T$119,J$125,FALSE)) ->  | K138: =IF($A138="","",VLOOKUP($A138,'MATERIAS PRIMAS'!$A$3:$T$119,K$125,FALSE)) ->  | L138: =IF($A138="","",VLOOKUP($A138,'MATERIAS PRIMAS'!$A$3:$T$119,L$125,FALSE)) ->  | M138: =IF($A138="","",VLOOKUP($A138,'MATERIAS PRIMAS'!$A$3:$T$119,M$125,FALSE)) ->  | N138: =IF($A138="","",VLOOKUP($A138,'MATERIAS PRIMAS'!$A$3:$T$119,N$125,FALSE)) ->  | O138: =IF($A138="","",VLOOKUP($A138,'MATERIAS PRIMAS'!$A$3:$T$119,O$125,FALSE)) ->  | P138: =IF($A138="","",VLOOKUP($A138,'MATERIAS PRIMAS'!$A$3:$T$119,P$125,FALSE)) ->  | Q138: =IF($A138="","",VLOOKUP($A138,'MATERIAS PRIMAS'!$A$3:$T$119,Q$125,FALSE)) ->  | R138: =IF($A138="","",VLOOKUP($A138,'MATERIAS PRIMAS'!$A$3:$T$119,R$125,FALSE)) ->  | S138: =IF($A138="","",VLOOKUP($A138,'MATERIAS PRIMAS'!$A$3:$T$119,S$125,FALSE)) ->  | T138: =IF($A138="","",VLOOKUP($A138,'MATERIAS PRIMAS'!$A$3:$T$119,T$125,FALSE)) -> 
A139: =IF('HACER RACION'!B44="","",'HACER RACION'!B44) ->  | B139: =IF('HACER RACION'!D44="","",'HACER RACION'!D44) ->  | C139: =IF($A139="","",VLOOKUP($A139,'MATERIAS PRIMAS'!$A$3:$T$119,C$125,FALSE)) ->  | D139: =IF($A139="","",VLOOKUP($A139,'MATERIAS PRIMAS'!$A$3:$T$119,D$125,FALSE)) ->  | E139: =IF($A139="","",VLOOKUP($A139,'MATERIAS PRIMAS'!$A$3:$T$119,E$125,FALSE)) ->  | F139: =IF($A139="","",VLOOKUP($A139,'MATERIAS PRIMAS'!$A$3:$T$119,F$125,FALSE)) ->  | G139: =IF($A139="","",VLOOKUP($A139,'MATERIAS PRIMAS'!$A$3:$T$119,G$125,FALSE)) ->  | H139: =IF($A139="","",VLOOKUP($A139,'MATERIAS PRIMAS'!$A$3:$T$119,H$125,FALSE)) ->  | I139: =IF($A139="","",VLOOKUP($A139,'MATERIAS PRIMAS'!$A$3:$T$119,I$125,FALSE)) ->  | J139: =IF($A139="","",VLOOKUP($A139,'MATERIAS PRIMAS'!$A$3:$T$119,J$125,FALSE)) ->  | K139: =IF($A139="","",VLOOKUP($A139,'MATERIAS PRIMAS'!$A$3:$T$119,K$125,FALSE)) ->  | L139: =IF($A139="","",VLOOKUP($A139,'MATERIAS PRIMAS'!$A$3:$T$119,L$125,FALSE)) ->  | M139: =IF($A139="","",VLOOKUP($A139,'MATERIAS PRIMAS'!$A$3:$T$119,M$125,FALSE)) ->  | N139: =IF($A139="","",VLOOKUP($A139,'MATERIAS PRIMAS'!$A$3:$T$119,N$125,FALSE)) ->  | O139: =IF($A139="","",VLOOKUP($A139,'MATERIAS PRIMAS'!$A$3:$T$119,O$125,FALSE)) ->  | P139: =IF($A139="","",VLOOKUP($A139,'MATERIAS PRIMAS'!$A$3:$T$119,P$125,FALSE)) ->  | Q139: =IF($A139="","",VLOOKUP($A139,'MATERIAS PRIMAS'!$A$3:$T$119,Q$125,FALSE)) ->  | R139: =IF($A139="","",VLOOKUP($A139,'MATERIAS PRIMAS'!$A$3:$T$119,R$125,FALSE)) ->  | S139: =IF($A139="","",VLOOKUP($A139,'MATERIAS PRIMAS'!$A$3:$T$119,S$125,FALSE)) ->  | T139: =IF($A139="","",VLOOKUP($A139,'MATERIAS PRIMAS'!$A$3:$T$119,T$125,FALSE)) -> 
A142: Descripción resumida | B142: Kg/dia | C142: MS* | D142: PB* | E142: FB* | F142: GB** | G142: Cenizas* | H142: Almidón am** | I142: Azúcar | J142: FND** | K142: FAD** | L142: LAD** | M142: UFL | N142: UFC | O142: PDIE | P142: PDIN | Q142: PDIA | R142: Ca | S142: P | T142: Humedad
A143: =IF(A127="","",A127) ->  | B143: =IF(B127="","",B127) ->  | C143: =IF(B127="",0,C127*$B127) -> 0 | D143: =IF(C127="",0,D127*($C127/1000)*$B127) -> 0 | E143: =IF(D127="",0,E127*($C127/1000)*$B127) -> 0 | F143: 0 | G143: 0 | H143: 0 | I143: 0 | J143: 0 | K143: 0 | L143: 0 | M143: 0 | N143: 0 | O143: 0 | P143: 0 | Q143: 0 | R143: 0 | S143: 0 | T143: 0
A144: =IF(A128="","",A128) ->  | C144: =IF(B128="",0,C128*$B128) -> 0 | D144: =IF(C128="",0,D128*($C128/1000)*$B128) -> 0 | E144: 0 | F144: 0 | G144: 0 | H144: 0 | I144: 0 | J144: 0 | K144: 0 | L144: 0 | M144: 0 | N144: 0 | O144: 0 | P144: 0 | Q144: 0 | R144: 0 | S144: 0 | T144: 0
C145: =IF(B129="",0,C129*$B129) -> 0 | D145: =IF(C129="",0,D129*($C129/1000)*$B129) -> 0 | E145: 0 | F145: 0 | G145: 0 | H145: 0 | I145: 0 | J145: 0 | K145: 0 | L145: 0 | M145: 0 | N145: 0 | O145: 0 | P145: 0 | Q145: 0 | R145: 0 | S145: 0 | T145: 0
C146: =IF(B130="",0,C130*$B130) -> 0 | D146: =IF(C130="",0,D130*($C130/1000)*$B130) -> 0 | E146: =IF(D130="",0,E130*($C130/1000)*$B130) -> 0 | F146: 0 | G146: 0 | H146: 0 | I146: 0 | J146: 0 | K146: 0 | L146: 0 | M146: 0 | N146: 0 | O146: 0 | P146: 0 | Q146: 0 | R146: 0 | S146: 0 | T146: 0
C147: =IF(B131="",0,C131*$B131) -> 0 | D147: =IF(C131="",0,D131*($C131/1000)*$B131) -> 0 | E147: 0 | F147: 0 | G147: 0 | H147: 0 | I147: 0 | J147: 0 | K147: 0 | L147: 0 | M147: 0 | N147: 0 | O147: 0 | P147: 0 | Q147: 0 | R147: 0 | S147: 0 | T147: 0
C148: =IF(B132="",0,C132*$B132) -> 0 | D148: =IF(C132="",0,D132*($C132/1000)*$B132) -> 0 | E148: 0 | F148: 0 | G148: 0 | H148: 0 | I148: 0 | J148: 0 | K148: 0 | L148: 0 | M148: 0 | N148: 0 | O148: 0 | P148: 0 | Q148: 0 | R148: 0 | S148: 0 | T148: 0
C149: =IF(B133="",0,C133*$B133) -> 0 | D149: =IF(C133="",0,D133*($C133/1000)*$B133) -> 0 | E149: 0 | F149: 0 | G149: 0 | H149: 0 | I149: 0 | J149: 0 | K149: 0 | L149: 0 | M149: 0 | N149: 0 | O149: 0 | P149: 0 | Q149: 0 | R149: 0 | S149: 0 | T149: 0
C150: =IF(B134="",0,C134*$B134) -> 0 | D150: =IF(C134="",0,D134*($C134/1000)*$B134) -> 0 | E150: 0 | F150: 0 | G150: 0 | H150: 0 | I150: 0 | J150: 0 | K150: 0 | L150: 0 | M150: 0 | N150: 0 | O150: 0 | P150: 0 | Q150: 0 | R150: 0 | S150: 0 | T150: 0
C151: =IF(B135="",0,C135*$B135) -> 0 | D151: =IF(C135="",0,D135*($C135/1000)*$B135) -> 0 | E151: 0 | F151: 0 | G151: 0 | H151: 0 | I151: 0 | J151: 0 | K151: 0 | L151: 0 | M151: 0 | N151: 0 | O151: 0 | P151: 0 | Q151: 0 | R151: 0 | S151: 0 | T151: 0
C152: =IF(B136="",0,C136*$B136) -> 0 | D152: =IF(C136="",0,D136*($C136/1000)*$B136) -> 0 | E152: 0 | F152: 0 | G152: 0 | H152: 0 | I152: 0 | J152: 0 | K152: 0 | L152: 0 | M152: 0 | N152: 0 | O152: 0 | P152: 0 | Q152: 0 | R152: 0 | S152: 0 | T152: 0
C153: =IF(B137="",0,C137*$B137) -> 0 | D153: =IF(C137="",0,D137*($C137/1000)*$B137) -> 0 | E153: 0 | F153: 0 | G153: 0 | H153: 0 | I153: 0 | J153: 0 | K153: 0 | L153: 0 | M153: 0 | N153: 0 | O153: 0 | P153: 0 | Q153: 0 | R153: 0 | S153: 0 | T153: 0
C154: =IF(B138="",0,C138*$B138) -> 0 | D154: =IF(C138="",0,D138*($C138/1000)*$B138) -> 0 | E154: 0 | F154: 0 | G154: 0 | H154: 0 | I154: 0 | J154: 0 | K154: 0 | L154: 0 | M154: 0 | N154: 0 | O154: 0 | P154: 0 | Q154: 0 | R154: 0 | S154: 0 | T154: 0
C155: =IF(B139="",0,C139*$B139) -> 0 | D155: =IF(C139="",0,D139*($C139/1000)*$B139) -> 0 | E155: 0 | F155: 0 | G155: 0 | H155: 0 | I155: 0 | J155: 0 | K155: 0 | L155: 0 | M155: 0 | N155: 0 | O155: 0 | P155: 0 | Q155: 0 | R155: 0 | S155: 0 | T155: 0
B156: =SUM(B143:B155) -> 0 | C156: =SUM(C143:C155) -> 0 | D156: =SUM(D143:D155) -> 0 | E156: 0 | F156: 0 | G156: 0 | H156: 0 | I156: 0 | J156: 0 | K156: 0 | L156: 0 | M156: 0 | N156: 0 | O156: 0 | P156: 0 | Q156: 0 | R156: 0 | S156: 0 | T156: 0
A157: =IF('HACER RACION'!C45="","",'HACER RACION'!C45) ->  | B157: Personalizada | C157: =1000-T157 ->  | D157: =D156/$C$158 -> 
C158: =C156/1000 -> 0
A160: NUTRIENTE | B160: UNIDADES | C160: TOTAL | D160: SSS
A161: Kg/dia | B161: Kg/dia | C161: =HLOOKUP(A161,$A$142:$T$157,15,FALSE) -> 0
A162: MS* | B162: gr/dia | C162: 0 | D162: =IF(C162="","",1000) -> 1000
A163: UF | B163: UF/dia | C163: =(C177*0.65)+(C178*0.35) -> 0 | D163: =C163/(C162/1000) -> 
A164: PDIE | B164: gr/dia | C164: =HLOOKUP(A164,$A$142:$T$157,15,FALSE) -> 0 | D164: =HLOOKUP(A164,$A$142:$T$157,16,FALSE) -> 
A165: PDIN | B165: gr/dia | C165: 0
A166: FND** | B166: gr/dia | C166: 0
A167: GB** | B167: gr/dia | C167: 0
A168: Ca | B168: gr/dia | C168: 0
A169: P | B169: gr/dia | C169: 0
A170: PB* | B170: gr/dia | C170: 0
A171: FB* | B171: gr/dia | C171: 0
A172: Cenizas* | B172: gr/dia | C172: 0
A173: Almidón am** | B173: gr/dia | C173: 0
A174: Azúcar | B174: gr/dia | C174: 0
A175: FAD** | B175: gr/dia | C175: 0
A176: LAD** | B176: gr/dia | C176: 0
A177: UFL | B177: UFL/dia | C177: 0
A178: UFC | B178: UFC/dia | C178: 0
A179: PDIA | B179: gr/dia | C179: 0
A180: Humedad | B180: gr/dia | C180: 0
A181: Humedad (%) | B181: % | D181: =D180/D162 -> 
A184: UF/kg MS | B184: =D163 -> 
A185: PB/kg MS | B185: =D170/1000 -> 
A186: GB/kg MS | B186: =D167/1000 -> 
A187: FB/kg MS | B187: =D171/1000 -> 
A188: Almidón/kg MS | B188: =D173/1000 -> 
A189: Azucar/Kg MS | B189: =D174/1000 -> 
A190: Alm+Su/kg MS | B190: =B188+B189 -> 

Sheet RACIONES
I2: VALORACION
I3: =IF(J3="","","UFL/Kg/MS") ->  | J3: =IF('ENLACES DATOS'!J5="","",'ENLACES DATOS'!J5) -> 
I4: =IF(J4="","","UFC/KgMS") ->  | J4: =IF('ENLACES DATOS'!J6="","",'ENLACES DATOS'!J6) -> 
B5: VALORACIÓN RACIONES | I5: =IF(J5="","","UF/KgMS") ->  | J5: =IF('ENLACES DATOS'!J7="","",'ENLACES DATOS'!J7) -> 
G6: SSS | H6: SSF | I6: % MS RACION
B7: GANADERO | F7: UF/kg MS
B8: FECHA | F8: %PB/kg MS
F9: %GB/kg MS
B10: GANADO | F10: %FB/kg MS
B11: APTITUD | F11: %Almidón/kg MS
B12: RANGO CONFIANZA | F12: %Azucar/Kg MS
B14: NUTRIENTE | C14: UTILIDAD | E14: VALOR | F14: REFERENCIA | G14: LIM.MINIMO | H14: LIM.MAXIMO | I14: R | J14: % VARIAB.
B15: =IF('ENLACES DATOS'!O2="","",'ENLACES DATOS'!O2) -> N_CHO_RD/kg MS | C15: =IF('ENLACES DATOS'!Q2="","",'ENLACES DATOS'!Q2) ->  | E15: =IF('ENLACES DATOS'!R2="","",'ENLACES DATOS'!R2) ->  | F15: =IF('ENLACES DATOS'!S2="","",'ENLACES DATOS'!S2) ->  | G15: =IF('ENLACES DATOS'!T2="","",'ENLACES DATOS'!T2) ->  | H15: =IF('ENLACES DATOS'!U2="","",'ENLACES DATOS'!U2) ->  | I15: =IF('ENLACES DATOS'!V2="","",'ENLACES DATOS'!V2) ->  | J15: =IF('ENLACES DATOS'!W2="","",'ENLACES DATOS'!W2) -> 
B16: =IF('ENLACES DATOS'!O3="","",'ENLACES DATOS'!O3) -> RUMIA IDX/kg MS | C16: =IF('ENLACES DATOS'!Q3="","",'ENLACES DATOS'!Q3) ->  | E16: =IF('ENLACES DATOS'!R3="","",'ENLACES DATOS'!R3) ->  | F16: =IF('ENLACES DATOS'!S3="","",'ENLACES DATOS'!S3) ->  | G16: =IF('ENLACES DATOS'!T3="","",'ENLACES DATOS'!T3) ->  | H16: =IF('ENLACES DATOS'!U3="","",'ENLACES DATOS'!U3) ->  | I16: =IF('ENLACES DATOS'!V3="","",'ENLACES DATOS'!V3) ->  | J16: =IF('ENLACES DATOS'!W3="","",'ENLACES DATOS'!W3) -> 
B17: =IF('ENLACES DATOS'!O4="","",'ENLACES DATOS'!O4) -> ACID INDEX/kg MS | C17: =IF('ENLACES DATOS'!Q4="","",'ENLACES DATOS'!Q4) ->  | E17: =IF('ENLACES DATOS'!R4="","",'ENLACES DATOS'!R4) ->  | F17: =IF('ENLACES DATOS'!S4="","",'ENLACES DATOS'!S4) ->  | G17: =IF('ENLACES DATOS'!T4="","",'ENLACES DATOS'!T4) ->  | H17: =IF('ENLACES DATOS'!U4="","",'ENLACES DATOS'!U4) ->  | I17: =IF('ENLACES DATOS'!V4="","",'ENLACES DATOS'!V4) ->  | J17: =IF('ENLACES DATOS'!W4="","",'ENLACES DATOS'!W4) -> 
B18: =IF('ENLACES DATOS'!O5="","",'ENLACES DATOS'!O5) -> N_CET/kg MS | C18: =IF('ENLACES DATOS'!Q5="","",'ENLACES DATOS'!Q5) ->  | E18: =IF('ENLACES DATOS'!R5="","",'ENLACES DATOS'!R5) ->  | F18: =IF('ENLACES DATOS'!S5="","",'ENLACES DATOS'!S5) ->  | G18: =IF('ENLACES DATOS'!T5="","",'ENLACES DATOS'!T5) ->  | H18: =IF('ENLACES DATOS'!U5="","",'ENLACES DATOS'!U5) ->  | I18: =IF('ENLACES DATOS'!V5="","",'ENLACES DATOS'!V5) ->  | J18: =IF('ENLACES DATOS'!W5="","",'ENLACES DATOS'!W5) -> 
B19: =IF('ENLACES DATOS'!O6="","",'ENLACES DATOS'!O6) -> N_GLU/kg MS | C19: =IF('ENLACES DATOS'!Q6="","",'ENLACES DATOS'!Q6) ->  | E19: =IF('ENLACES DATOS'!R6="","",'ENLACES DATOS'!R6) ->  | F19: =IF('ENLACES DATOS'!S6="","",'ENLACES DATOS'!S6) ->  | G19: =IF('ENLACES DATOS'!T6="","",'ENLACES DATOS'!T6) ->  | H19: =IF('ENLACES DATOS'!U6="","",'ENLACES DATOS'!U6) ->  | I19: =IF('ENLACES DATOS'!V6="","",'ENLACES DATOS'!V6) ->  | J19: =IF('ENLACES DATOS'!W6="","",'ENLACES DATOS'!W6) -> 
B20: =IF('ENLACES DATOS'!O7="","",'ENLACES DATOS'!O7) -> N-END/Kg MS | C20: =IF('ENLACES DATOS'!Q7="","",'ENLACES DATOS'!Q7) ->  | E20: =IF('ENLACES DATOS'!R7="","",'ENLACES DATOS'!R7) ->  | F20: =IF('ENLACES DATOS'!S7="","",'ENLACES DATOS'!S7) ->  | G20: =IF('ENLACES DATOS'!T7="","",'ENLACES DATOS'!T7) ->  | H20: =IF('ENLACES DATOS'!U7="","",'ENLACES DATOS'!U7) ->  | I20: =IF('ENLACES DATOS'!V7="","",'ENLACES DATOS'!V7) ->  | J20: =IF('ENLACES DATOS'!W7="","",'ENLACES DATOS'!W7) -> 
B21: =IF('ENLACES DATOS'!O8="","",'ENLACES DATOS'!O8) -> N-BPD/Kg MS | C21: =IF('ENLACES DATOS'!Q8="","",'ENLACES DATOS'!Q8) ->  | E21: =IF('ENLACES DATOS'!R8="","",'ENLACES DATOS'!R8) ->  | F21: =IF('ENLACES DATOS'!S8="","",'ENLACES DATOS'!S8) ->  | G21: =IF('ENLACES DATOS'!T8="","",'ENLACES DATOS'!T8) ->  | H21: =IF('ENLACES DATOS'!U8="","",'ENLACES DATOS'!U8) ->  | I21: =IF('ENLACES DATOS'!V8="","",'ENLACES DATOS'!V8) ->  | J21: =IF('ENLACES DATOS'!W8="","",'ENLACES DATOS'!W8) -> 
I24: NUTRIENTE
I27: =IF(I25="","",'ENLACES DATOS'!Q12) -> 

Sheet PIENSOS
B5: VALORACIÓN PIENSOS
G6: SSF | I6: VALORACION
B7: GANADERO | F7: UF | I7: =IF(J7="","","UFL") ->  | J7: =IF('ENLACES DATOS'!H39="","",'ENLACES DATOS'!H39) -> 
B8: FECHA | F8: PB | I8: =IF(J8="","","UFV") ->  | J8: =IF('ENLACES DATOS'!H40="","",'ENLACES DATOS'!H40) -> 
F9: GB | I9: =IF(J9="","","UF") ->  | J9: =IF('ENLACES DATOS'!H41="","",'ENLACES DATOS'!H41) -> 
B10: ESPECIFICIDAD | F10: FB
B11: RANGO CONFIANZA | F11: Cenizas
F12: Almidon
B14: NUTRIENTE | C14: UTILIDAD | E14: VALOR | F14: REFERENCIA | G14: LIM.MINIMO | H14: LIM.MAXIMO | I14: R | J14: % VARIAB.
B15: N_CHO_RD | C15: =IF('ENLACES DATOS'!Q49="","",'ENLACES DATOS'!Q49) ->  | E15: =IF('ENLACES DATOS'!R49="","",'ENLACES DATOS'!R49) ->  | F15: =IF('ENLACES DATOS'!S49="","",'ENLACES DATOS'!S49) ->  | G15: =IF('ENLACES DATOS'!T49="","",'ENLACES DATOS'!T49) ->  | H15: =IF('ENLACES DATOS'!U49="","",'ENLACES DATOS'!U49) ->  | I15: =IF('ENLACES DATOS'!V49="","",'ENLACES DATOS'!V49) ->  | J15: =IF('ENLACES DATOS'!W49="","",'ENLACES DATOS'!W49) -> 
B16: RUMIA IDX | C16: =IF('ENLACES DATOS'!Q50="","",'ENLACES DATOS'!Q50) ->  | E16: =IF('ENLACES DATOS'!R50="","",'ENLACES DATOS'!R50) ->  | F16: =IF('ENLACES DATOS'!S50="","",'ENLACES DATOS'!S50) ->  | G16: =IF('ENLACES DATOS'!T50="","",'ENLACES DATOS'!T50) ->  | H16: =IF('ENLACES DATOS'!U50="","",'ENLACES DATOS'!U50) ->  | I16: =IF('ENLACES DATOS'!V50="","",'ENLACES DATOS'!V50) ->  | J16: =IF('ENLACES DATOS'!W50="","",'ENLACES DATOS'!W50) -> 
B17: ACID INDEX | C17: =IF('ENLACES DATOS'!Q51="","",'ENLACES DATOS'!Q51) ->  | E17: =IF('ENLACES DATOS'!R51="","",'ENLACES DATOS'!R51) ->  | F17: =IF('ENLACES DATOS'!S51="","",'ENLACES DATOS'!S51) ->  | G17: =IF('ENLACES DATOS'!T51="","",'ENLACES DATOS'!T51) ->  | H17: =IF('ENLACES DATOS'!U51="","",'ENLACES DATOS'!U51) ->  | I17: =IF('ENLACES DATOS'!V51="","",'ENLACES DATOS'!V51) ->  | J17: =IF('ENLACES DATOS'!W51="","",'ENLACES DATOS'!W51) -> 
B18: N_CET | C18: =IF('ENLACES DATOS'!Q52="","",'ENLACES DATOS'!Q52) ->  | E18: =IF('ENLACES DATOS'!R52="","",'ENLACES DATOS'!R52) ->  | F18: =IF('ENLACES DATOS'!S52="","",'ENLACES DATOS'!S52) ->  | G18: =IF('ENLACES DATOS'!T52="","",'ENLACES DATOS'!T52) ->  | H18: =IF('ENLACES DATOS'!U52="","",'ENLACES DATOS'!U52) ->  | I18: =IF('ENLACES DATOS'!V52="","",'ENLACES DATOS'!V52) ->  | J18: =IF('ENLACES DATOS'!W52="","",'ENLACES DATOS'!W52) -> 
B19: N_GLU | C19: =IF('ENLACES DATOS'!Q53="","",'ENLACES DATOS'!Q53) ->  | E19: =IF('ENLACES DATOS'!R53="","",'ENLACES DATOS'!R53) ->  | F19: =IF('ENLACES DATOS'!S53="","",'ENLACES DATOS'!S53) ->  | G19: =IF('ENLACES DATOS'!T53="","",'ENLACES DATOS'!T53) ->  | H19: =IF('ENLACES DATOS'!U53="","",'ENLACES DATOS'!U53) ->  | I19: =IF('ENLACES DATOS'!V53="","",'ENLACES DATOS'!V53) ->  | J19: =IF('ENLACES DATOS'!W53="","",'ENLACES DATOS'!W53) -> 
B20: N-END | C20: =IF('ENLACES DATOS'!Q54="","",'ENLACES DATOS'!Q54) ->  | E20: =IF('ENLACES DATOS'!R54="","",'ENLACES DATOS'!R54) ->  | F20: =IF('ENLACES DATOS'!S54="","",'ENLACES DATOS'!S54) ->  | G20: =IF('ENLACES DATOS'!T54="","",'ENLACES DATOS'!T54) ->  | H20: =IF('ENLACES DATOS'!U54="","",'ENLACES DATOS'!U54) ->  | I20: =IF('ENLACES DATOS'!V54="","",'ENLACES DATOS'!V54) ->  | J20: =IF('ENLACES DATOS'!W54="","",'ENLACES DATOS'!W54) -> 
B21: N-BPD | C21: =IF('ENLACES DATOS'!Q55="","",'ENLACES DATOS'!Q55) ->  | E21: =IF('ENLACES DATOS'!R55="","",'ENLACES DATOS'!R55) ->  | F21: =IF('ENLACES DATOS'!S55="","",'ENLACES DATOS'!S55) ->  | G21: =IF('ENLACES DATOS'!T55="","",'ENLACES DATOS'!T55) ->  | H21: =IF('ENLACES DATOS'!U55="","",'ENLACES DATOS'!U55) ->  | I21: =IF('ENLACES DATOS'!V55="","",'ENLACES DATOS'!V55) ->  | J21: =IF('ENLACES DATOS'!W55="","",'ENLACES DATOS'!W55) -> 
I24: NUTRIENTE
I27: =IF(I25="","",'ENLACES DATOS'!Q59) -> 

Sheet HACER RACION
B5: FORMULACIÓN DE DIETA
B7: GANADERO | H7: VALORACION NUTRICIONAL
B8: FECHA
H9: COBERTURA NECESIDADES (FEDNA 2009)
B10: RACION | H10: NUTRIENTE | I10: UNIDADES | J10: VALOR BRUTO | K10: NECESIDADES | L10: % VARIACIÓN
H11: Ingesta Kg Bruto | I11: Kg/dia | J11: =IF($D$32="","",'ENLACES DATOS'!C161) -> 
B12: DATOS BASICOS DE LOS ANIMALES | H12: IMS (KgMS) | I12: Kg/dia | J12: =IF($D$32="","",'ENLACES DATOS'!C162/1000) ->  | K12: =IF('ENLACES DATOS'!M103="","",'ENLACES DATOS'!M103) ->  | L12: =IF(K12="","",(J12-K12)/K12) -> 
B13: CAPRINO | C13: PESO VIVO | H13: UF | I13: UF/dia | J13: =IF($D$32="","",'ENLACES DATOS'!C163) ->  | K13: =IF('ENLACES DATOS'!M104="","",'ENLACES DATOS'!M104) ->  | L13: =IF(K13="","",(J13-K13)/K13) -> 
C14: LITROS/DIA | H14: gr PDIE | I14: gramos/dia | J14: =IF($D$32="","",'ENLACES DATOS'!C164) ->  | K14: =IF('ENLACES DATOS'!M105="","",'ENLACES DATOS'!M105) -> 
C15: GRASA LECHE (gramos) | H15: gr PDIN | I15: gramos/dia | J15: =IF($D$32="","",'ENLACES DATOS'!C165) ->  | K15: =IF('ENLACES DATOS'!M105="","",'ENLACES DATOS'!M105) ->  | L15: =IF(K15="","",(J15-K15)/K15) -> 
C16: PROTEINA LECHE (gramos) | H16: gr FND | I16: gramos/dia | J16: =IF($D$32="","",'ENLACES DATOS'!C166) ->  | K16: =IF('ENLACES DATOS'!M106="","",'ENLACES DATOS'!M106) ->  | L16: =IF(K16="","",(J16-K16)/K16) -> 
C17: MES DE GESTACION | H17: gr GB (máximo) | I17: gramos/dia | J17: =IF($D$32="","",'ENLACES DATOS'!C167) ->  | K17: =IF('ENLACES DATOS'!M107="","",'ENLACES DATOS'!M107) ->  | L17: =IF(K17="","",(J17-K17)/K17) -> 
C18: MES DE LACTACION | H18: gr Ca | I18: gramos/dia | J18: =IF($D$32="","",'ENLACES DATOS'!C168) ->  | K18: =IF('ENLACES DATOS'!M108="","",'ENLACES DATOS'!M108) ->  | L18: =IF(K18="","",(J18-K18)/K18) -> 
C19: DISTANCIA RECORRIDA (Km) | H19: gr P | I19: gramos/dia | J19: =IF($D$32="","",'ENLACES DATOS'!C169) ->  | K19: =IF('ENLACES DATOS'!M109="","",'ENLACES DATOS'!M109) ->  | L19: =IF(K19="","",(J19-K19)/K19) -> 
B21: OVINO | C21: TIPO OVEJA
C22: PESO VIVO | H22: PERFIL NUTRICIONAL
C23: LECHE/DIA | H23: ='ENLACES DATOS'!A181 -> Humedad (%) | I23: ='ENLACES DATOS'!B181 -> % | J23: =IF($J$12="","",'ENLACES DATOS'!D181) -> 
C24: GRASA LECHE (gramos) | H24: ='ENLACES DATOS'!A162 -> MS* | I24: ='ENLACES DATOS'!B162 -> gr/dia | J24: =IF($J$12="","",'ENLACES DATOS'!D162) -> 
C25: PROTEINA LECHE (gramos) | H25: NUTRIENTE | I25: UNIDADES | J25: SOBRE M.S.
C26: PESO CAMADA | H26: ='ENLACES DATOS'!A163 -> UF | I26: ='ENLACES DATOS'!B163 -> UF/dia | J26: =IF($J$12="","",'ENLACES DATOS'!D163) -> 
C27: DIAS GESTACION | H27: ='ENLACES DATOS'!A170 -> PB* | I27: ='ENLACES DATOS'!B170 -> gr/dia | J27: =IF($J$12="","",'ENLACES DATOS'!D170) -> 
C28: TEMPERATURA | H28: ='ENLACES DATOS'!A164 -> PDIE | I28: ='ENLACES DATOS'!B164 -> gr/dia | J28: =IF($J$12="","",'ENLACES DATOS'!D164) -> 
H29: ='ENLACES DATOS'!A165 -> PDIN | I29: ='ENLACES DATOS'!B165 -> gr/dia | J29: =IF($J$12="","",'ENLACES DATOS'!D165) -> 
H30: ='ENLACES DATOS'!A179 -> PDIA | I30: ='ENLACES DATOS'!B179 -> gr/dia | J30: =IF($J$12="","",'ENLACES DATOS'!D179) -> 
B31: INGREDIENTE | D31: KILOS/DIA | H31: ='ENLACES DATOS'!A166 -> FND** | I31: ='ENLACES DATOS'!B166 -> gr/dia | J31: =IF($J$12="","",'ENLACES DATOS'!D166) -> 
H32: ='ENLACES DATOS'!A175 -> FAD** | I32: ='ENLACES DATOS'!B175 -> gr/dia | J32: =IF($J$12="","",'ENLACES DATOS'!D175) -> 
H33: ='ENLACES DATOS'!A176 -> LAD** | I33: ='ENLACES DATOS'!B176 -> gr/dia | J33: =IF($J$12="","",'ENLACES DATOS'!D176) -> 
H34: ='ENLACES DATOS'!A171 -> FB* | I34: ='ENLACES DATOS'!B171 -> gr/dia | J34: =IF($J$12="","",'ENLACES DATOS'!D171) -> 
H35: ='ENLACES DATOS'!A167 -> GB** | I35: ='ENLACES DATOS'!B167 -> gr/dia | J35: =IF($J$12="","",'ENLACES DATOS'!D167) -> 
H36: ='ENLACES DATOS'!A172 -> Cenizas* | I36: ='ENLACES DATOS'!B172 -> gr/dia | J36: =IF($J$12="","",'ENLACES DATOS'!D172) -> 
H37: ='ENLACES DATOS'!A173 -> Almidón am** | I37: ='ENLACES DATOS'!B173 -> gr/dia | J37: =IF($J$12="","",'ENLACES DATOS'!D173) -> 
H38: ='ENLACES DATOS'!A174 -> Azúcar | I38: ='ENLACES DATOS'!B174 -> gr/dia | J38: =IF($J$12="","",'ENLACES DATOS'!D174) -> 
H39: ='ENLACES DATOS'!A168 -> Ca | I39: ='ENLACES DATOS'!B168 -> gr/dia | J39: =IF($J$12="","",'ENLACES DATOS'!D168) -> 
H40: ='ENLACES DATOS'!A169 -> P | I40: ='ENLACES DATOS'!B169 -> gr/dia | J40: =IF($J$12="","",'ENLACES DATOS'!D169) -> 
B45: DIETA

Sheet INFORMACION NUTRIENTES
B5: INFORMACION NUTRIENTES NUEVO MODELO
B7: NUTRIENTE | C7: SIGNIFICADO | D7: ORIGEN | E7: APLICACIÓN PRÁCTICA
B8: N_CHO_RD | C8: Carbohidratos rápidamente fermentables (0-2 horas). | D8: Se centra sobre todo en almidón y azúcar. Aumenta la fermentabilidad ruminal. Debe estar alineado con los contenidos en proteína degradable. | E8: Aumentar la producción.
E9: Puede deprimir la grasa de la leche.
E10: Aumentar la ingesta si está por debajo de los mínimos.
E11: Aumentar la proteína de la leche.
B12: RUMIA IDX | C12: Indice de Rumia. Efectividad de la fibra en facilitar la rumia. Relacionado con la cantidad de saliva producida. | D12: Muy relacionado con la Fibra Efectiva de Maertens. El valor de referencia sería de 100 (es un índice). Indica la capacidad de la dieta para tamponar el rumen. | E12: Valores bajos indican necesidad de fibra larga y de volumen.
E13: Valores altos pueden producir rumia lenta y baja ingesta.
B14: ACID INDEX | C14: Indice de carga acidógena. Capacidad de la dieta para acidificar el rumen. | D14: Se basa en la produccion de AGV a partir de los HdC y las proteínas fermentables, así como los ácidos de los ensilados. | E14: Valores altos pueden dar bajos test de grasa en leche y riesgo de acidosis.
B15: N_CET | C15: Nutrientes cetogénicos. | D15: Basado en el cálculo de acetato, butirato y AG ramificados en panza, así como la grasa de la dieta. | E15: Incrementar en caso si queremos aumentar grasa en leche.
E16: Incrementar si queremos aumentar reservas grasas.
E17: Disminuir si queremos evitar engrasamiento de animales.
B18: N_GLU | C18: Nutrientes glucogénicos precursores de glucosa. | D18: Procede de la producción de propionato, parte de AG ramificados, parte de la proteína y la digestión intestinal del almidón by pass. | E18: Importante en suboptimos inicios de lactación.
E19: Aumentar si queremos evitar toxemias de gestación.
B20: N-END | C20: Energía dinámica. Es un indice. Tiene en cuenta la digestion en rumen , ID e IG y las interacciones entre nutrientes. | D20: Viene del cómputo de todos los nutrientes absorbidos en los 3 compartimentos digestivos en términos de energía neta. | E20: Buena correlación con la producción de leche.
E21: En nuestro modelo de ovino y caprino, al estar calculado mediante regresión, no tiene una aplicación tan precisa como en vacuno.
B22: N-BPD | C22: Balance Energía-Proteína Degradable. | D22: Diferencia entre la proteina microbiana disponible y la requerida para la máxima sintesis de proteina microbianana. | E22: Valores menores de 0 indican déficit de proteína fermentable o exceso de energía fermentable.
E23: Valores mayores a 0 , exceso de proteina fermentable.
E24: Se recomindan valores mayores que 0.

Sheet HOJA DE AYUDA
B4: AYUDA E INSTRUCCIONES
B8: 1.- GUIA RACIONAMIENTO BASICO
B10: https://youtu.be/0eyiqNHWemk
B12: 2.- GUÍA VALORACION DE RACIONES EN NOVALAC
B14: https://youtu.be/AiC9-IRYij0
B17: 3.- GUIA VALORACION DE PIENSOS EN NOVALAC
B19: https://youtu.be/cHkW--mUeLo
B22: 4.- GUÍA INFORMACIÓN DE NUTRIENTES
B24: https://youtu.be/0sIiMk7IjhE

Sheet MODULO
